Workbook

Sheet Cover Sheet
C1: Shared Services Submission Cover Sheet | G1: Required Signatures / Attached Email Support:
H2: Department Chair:
H3: Service Line Lead:
D4: Please complete the following cover sheet and include with all SSA submissions
E5: Department / Section:
E6: Submission Title:
A7: FALSE | B7: New Recruit | C7: =IF(A7=FALSE," ",B7) ->  | E7: Description: Please describe the submission including supportive information, background,
F8: description of the request and relevant details (3-5 sentences)
A9: FALSE | B9: Replacement | C9: =IF(A9=FALSE," ",B9) -> 
A10: FALSE | B10: Medical Director
A11: FALSE | B11: Other Support
D13: Please Select from the Below List:
E14: Check the boxes for those items included in the submission packet, and provide requested documents
E15: {1} | F15: New Recruit:
E19: {2} | F19: Replacement
E23: {3} | F23: Medical Director
E28: {4} | F28: Other Programmatic Support / Departmental Support / Performance Support

Sheet RFP Summary
A4: RFP Summary | B4: Year 1 | C4: Year 2 | D4: Year 3 | H4: Notes:
A6: Volume | B6: ='YSM-YM Clinical Plan'!C13 -> 0 | C6: ='YSM-YM Clinical Plan'!D13 -> 0 | D6: ='YSM-YM Clinical Plan'!E13 -> 0 | F6: =SUM(B6:D6) -> 0
A7: Revenue-generating Clinical FTE1 | B7: ='YSM-YM Clinical Plan'!C14 -> 0 | C7: ='YSM-YM Clinical Plan'!D14 -> 0 | D7: ='YSM-YM Clinical Plan'!E14 -> 0 | F7: =SUM(B7:E7) -> 0
A8: # of Faculty | B8: ='YSM-YM Clinical Plan'!C15 -> 0 | C8: ='YSM-YM Clinical Plan'!D15 -> 0 | D8: ='YSM-YM Clinical Plan'!E15 -> 0 | F8: =SUM(B8:E8) -> 0
A9: Collections (Based on Full Year) | B9: ='YSM-YM Clinical Plan'!C16 -> 0 | C9: ='YSM-YM Clinical Plan'!D16 -> 0 | D9: ='YSM-YM Clinical Plan'!E16 -> 0 | F9: =SUM(B9:D9) -> 0
A10: Collections (Prorated if applicable) | B10: ='YSM-YM Clinical Plan'!C17 -> 0 | C10: ='YSM-YM Clinical Plan'!D17 -> 0 | D10: ='YSM-YM Clinical Plan'!E17 -> 0 | F10: =SUM(B10:D10) -> 0
A12: Revenue/Volume Metrics:
A13: Volume per Revenue-generating cFTE | B13: =IF(B7>0,B6/B7," ") ->  | C13: =IF(C7>0,C6/C7," ") ->  | D13: =IF(D7>0,D6/D7," ") ->  | F13: =IF(F6>0,F6/F7," ") -> 
A14: Collections per Revenue-generating cFTE | B14: =IF(B7>0,B10/B7," ") ->  | C14: =IF(C7>0,C10/C7," ") ->  | D14: =IF(D7>0,D10/D7," ") ->  | F14: =IFERROR(IF(F10>0,F10/F7," ")," ") -> 
A15: Collections per Volume Metric | B15: =IFERROR(IF(B10>0,B10/B6," ")," ") ->  | C15: =IFERROR(IF(C10>0,C10/C6," ")," ") ->  | D15: =IFERROR(IF(D10>0,D10/D6," ")," ") ->  | F15: =IFERROR(IF(F10>0,F10/F6," ")," ") -> 
A17: Program Development/Direction Support
A18: Clinical Revenue - YNHH(S) Support | B18: ='YSM-YM Clinical Plan'!C23+'YSM-YM Clinical Plan'!C24+'YSM-YM Clinical Plan'!C25+'YSM-YM Clinical Plan'!C26 -> 0 | C18: ='YSM-YM Clinical Plan'!D23+'YSM-YM Clinical Plan'!D24+'YSM-YM Clinical Plan'!D25+'YSM-YM Clinical Plan'!D26 -> 0 | D18: ='YSM-YM Clinical Plan'!E23+'YSM-YM Clinical Plan'!E24+'YSM-YM Clinical Plan'!E25+'YSM-YM Clinical Plan'!E26 -> 0 | F18: =SUM(B18:D18) -> 0
A19: Clinical Revenue - Other | B19: =SUM('YSM-YM Clinical Plan'!C27:C30) -> 0 | C19: =SUM('YSM-YM Clinical Plan'!D27:D30) -> 0 | D19: =SUM('YSM-YM Clinical Plan'!E27:E30) -> 0 | F19: =SUM(B19:D19) -> 0
A20: Grant Revenue - Directs | B20: ='Research Plan'!I6 -> 0 | C20: ='Research Plan'!Q6 -> 0 | D20: ='Research Plan'!Y6 -> 0 | F20: 0
A21: Grant Revenue - Indirects | B21: ='Research Plan'!I7 -> 0 | C21: ='Research Plan'!Q7 -> 0 | D21: ='Research Plan'!Y7 -> 0 | F21: 0
A22: Other Research Revenue | B22: =SUM('Research Plan'!I8:I14) -> 0 | C22: =SUM('Research Plan'!Q8:Q14) -> 0 | D22: =SUM('Research Plan'!Y8:Y14) -> 0 | F22: 0
A24: Revenue Grand Total | B24: =SUM(B18:B22,B10) -> 0 | C24: =SUM(C18:C22,C10) -> 0 | D24: =SUM(D18:D22,D10) -> 0 | E24: =SUM(E18:E22,E10) -> 0 | F24: =SUM(F18:F22,F10) -> 0
A26: Applicable Assessments
A27: Total Assessments | B27: ='YSM-YM Clinical Plan'!C47+'Research Plan'!I33 -> 0 | C27: ='YSM-YM Clinical Plan'!D47+'Research Plan'!Q33 -> 0 | D27: ='YSM-YM Clinical Plan'!E47+'Research Plan'!Y33 -> 0 | F27: =SUM(B27:D27) -> 0
A29: Expenses2
A30: Faculty Salaries | B30: ='YSM-YM Clinical Plan'!C51+'YSM-YM Clinical Plan'!C52+'Research Plan'!I18+'Research Plan'!I19 -> 0 | C30: ='YSM-YM Clinical Plan'!D51+'YSM-YM Clinical Plan'!D52+'Research Plan'!Q18+'Research Plan'!Q19 -> 0 | D30: ='YSM-YM Clinical Plan'!E51+'YSM-YM Clinical Plan'!E52+'Research Plan'!Y18+'Research Plan'!Y19 -> 0 | F30: =SUM(B30:D30) -> 0
A31: All Other Staffing | B31: ='YSM-YM Clinical Plan'!C53+'YSM-YM Clinical Plan'!C54+'Research Plan'!I24+'YSM-YM Clinical Plan'!C55 -> 0 | C31: ='YSM-YM Clinical Plan'!D53+'YSM-YM Clinical Plan'!D54+'Research Plan'!Q24+'YSM-YM Clinical Plan'!D55 -> 0 | D31: ='YSM-YM Clinical Plan'!E53+'YSM-YM Clinical Plan'!E54+'Research Plan'!Y24+'YSM-YM Clinical Plan'!E55 -> 0 | F31: 0
A32: Fringe | B32: ='YSM-YM Clinical Plan'!C56+'Research Plan'!I21+'Research Plan'!I25 -> 0 | C32: ='YSM-YM Clinical Plan'!D56+'Research Plan'!Q21+'Research Plan'!Q25 -> 0 | D32: ='YSM-YM Clinical Plan'!E56+'Research Plan'!Y21+'Research Plan'!Y25 -> 0 | F32: 0
A33: Grant Indirects | B33: ='Research Plan'!I34 -> 0 | C33: ='Research Plan'!Q34 -> 0 | D33: ='Research Plan'!Y34 -> 0 | F33: 0
A34: Non-Salary | B34: =SUM('YSM-YM Clinical Plan'!C57:C60)+SUM('Research Plan'!I26:I27) -> 0 | C34: =SUM('YSM-YM Clinical Plan'!D57:D60)+SUM('Research Plan'!Q26:Q27) -> 0 | D34: =SUM('YSM-YM Clinical Plan'!E57:E60)+SUM('Research Plan'!Y26:Y27) -> 0 | F34: 0
A35: Total Expenses | B35: =SUM(B30:B34) -> 0 | C35: =SUM(C30:C34) -> 0 | D35: =SUM(D30:D34) -> 0 | F35: =SUM(F30:F34) -> 0
A37: Contribution Margin (Revenue less Direct Cost) | B37: =B24-B35 -> 0 | C37: 0 | D37: 0 | E37: 0 | F37: 0 | G37: 0
A38: Contribution Margin (%) | B38: =IFERROR(IF(B37=0,0,B37/B24),0) -> 0 | C38: =IFERROR(IF(C37=0,0,C37/C24),0) -> 0 | D38: =IFERROR(IF(D37=0,0,D37/D24),0) -> 0 | E38: =IF(E37=0,0,E37/E24) -> 0 | F38: =IFERROR(IF(F37=0,0,F37/F24),0) -> 0
A40: Expense Grand Total | B40: =B27+B35 -> 0 | C40: =C27+C35 -> 0 | D40: =D27+D35 -> 0 | F40: =F27+F35 -> 0 | G40: =G27+G35 -> 0
A42: Total Net Income | B42: =B24-B40 -> 0 | C42: =C24-C40 -> 0 | D42: =D24-D40 -> 0 | E42: =E24-E40 -> 0 | F42: =F24-F40 -> 0
A43: Net Margin (%) | B43: =IFERROR(IF(B42=0,0,B42/B24),0) -> 0 | C43: =IFERROR(IF(C42=0,0,C42/C24),0) -> 0 | D43: =IFERROR(IF(D42=0,0,D42/D24),0) -> 0 | E43: =IF(E42=0,0,E42/E24) -> 0 | F43: =IFERROR(IF(F42=0,0,F42/F24),0) -> 0
A45: YNHH(S) Overhead - CLINICAL ONLY | B45: ='YSM-YM Clinical Plan'!C79+'YSM-YM Clinical Plan'!C80 -> 0 | C45: ='YSM-YM Clinical Plan'!D79+'YSM-YM Clinical Plan'!D80 -> 0 | D45: ='YSM-YM Clinical Plan'!E79+'YSM-YM Clinical Plan'!E80 -> 0 | E45: =E18 -> 0 | F45: =SUM(B45:E45) -> 0
B46: =(SUMIF('Salary Build Sheet (Clinical)'!$C$19:$C$23,"YNHH Not Metric-Based",'Salary Build Sheet (Clinical)'!$H$19:$H$23))/12*(VLOOKUP(#REF!,Depository1!$M$5:$N$21,2,0)) ->  | C46: =(SUMIF('Salary Build Sheet (Clinical)'!$C$19:$C$23,"YNHH Not Metric-Based",'Salary Build Sheet (Clinical)'!$H$19:$H$23))/12*(VLOOKUP(#REF!,Depository1!$M$5:$N$21,2,0)) ->  | D46: =(SUMIF('Salary Build Sheet (Clinical)'!$C$19:$C$23,"YNHH Not Metric-Based",'Salary Build Sheet (Clinical)'!$H$19:$H$23))/12*(VLOOKUP(#REF!,Depository1!$M$5:$N$21,2,0)) -> 
A47: Total YNHH Payment - CLINICAL ONLY | B47: ='YSM-YM Clinical Plan'!C82 -> 0 | C47: ='YSM-YM Clinical Plan'!D82 -> 0 | D47: ='YSM-YM Clinical Plan'!E82 -> 0 | F47: =SUM(B47:E47) -> 0

Sheet YSM-YM Clinical Plan
C3: <-----Please Select Type | G3: PW: yalebulldogs
C4: <-----Please Select Identifying Information
C5: <-----Please Select Department
C6: <-----Please Select Department Section (if applicable)
A8: Select Ramp-Up Methodology/Fiscal Year----> | B8: FY 2024 | C8: Blank | D8: Blank | E8: Blank | G8: ---> please select
A9: Fiscal Year Start ----> | B9: Full Year
G10: 3 yr. Total
B11: Rates | C11: Year 1 | D11: Year 2 | E11: Year 3 | I11: Notes:
A13: Volume | B13: wRVUs | G13: =SUM(C13:E13) -> 0
A14: Revenue-generating Clinical FTE1 | F14: 1 | G14: =SUM(C14:F14) -> 1
A15: # of Faculty | G15: =SUM(C15:F15) -> 0
A16: Collections (Based on Full Year) | G16: =SUM(C16:E16) -> 0
A17: Collections (Prorated if applicable) | C17: =MAX(IF(C16>0,(C16-C16/(VLOOKUP($B$9,Depository1!$M$5:$N$21,2,0))*Assumptions!$D$17),0),0) -> 0 | D17: =D16*(12-Assumptions!$D$17)/12+(C16-C17) -> 0 | E17: =(E16*(12-Assumptions!$D$17)+D16*Assumptions!$D$17)/12 -> 0 | G17: =SUM(C17:E17) -> 0
A19: Revenue/Volume Metrics:
A20: Collections per Volume Metric | C20: =IFERROR(IF(C17>0,C17/C13," "),0) ->  | D20: =IFERROR(IF(D17>0,D17/D13," "),0) ->  | E20: =IFERROR(IF(E17>0,E17/E13," "),0) ->  | G20: =IFERROR(IF(G17>0,G17/G13," "),0) -> 
A22: Program Development/Direction Support
A23: YNHH(S) Direct Salary and Fringe Benefit Support | C23: ='Salary Build Sheet (Clinical)'!S48 -> 0 | D23: ='Salary Build Sheet (Clinical)'!AG48 -> 0 | E23: ='Salary Build Sheet (Clinical)'!AU48 -> 0 | G23: =SUM(C23:E23) -> 0
A24: YNHH(S) Paid Performance Fund | C24: =((SUMIF('Salary Build Sheet (Clinical)'!$C$19:$C$23,"YNHH Metric-Based",'Salary Build Sheet (Clinical)'!$K$19:$K$23)+SUMIF('Salary Build Sheet (Clinical)'!$C$19:$C$23,"YNHH Not Metric-Based",'Salary Build Sheet (Clinical)'!$K$19:$K$23))/12)*(VLOOKUP($B$9,Depository1!$M$5:$N$21,2,0)) -> 0 | D24: =(SUMIF('Salary Build Sheet (Clinical)'!$C$19:$C$23,"YNHH Metric-Based",'Salary Build Sheet (Clinical)'!$Y$19:$Y$23)+SUMIF('Salary Build Sheet (Clinical)'!$C$19:$C$23,"YNHH Not Metric-Based",'Salary Build Sheet (Clinical)'!$Y$19:$Y$23)) -> 0 | E24: =(SUMIF('Salary Build Sheet (Clinical)'!$C$19:$C$23,"YNHH Metric-Based",'Salary Build Sheet (Clinical)'!$AM$19:$AM$23)+SUMIF('Salary Build Sheet (Clinical)'!$C$19:$C$23,"YNHH Not Metric-Based",'Salary Build Sheet (Clinical)'!$AM$19:$AM$23)) -> 0 | G24: =SUM(C24:E24) -> 0
A25: YNHH(S) Contractual (include On-Call) | C25: 0 | D25: 0 | E25: 0 | G25: =SUM(C25:E25) -> 0
A26: Other Clinical Contracts (not YNHHS) | C26: 0 | D26: 0 | E26: 0 | G26: =SUM(C26:E26) -> 0
A27: Gifts | C27: 0 | D27: 0 | E27: 0 | G27: 0
A28: Clinical Drug Trials | C28: 0 | D28: 0 | E28: 0 | G28: 0
A29: VA Funding (Eigths) | C29: 0 | D29: 0 | E29: 0 | G29: 0
A30: Other Revenue (non-taxable) - Use for Dept. Support | C30: 0 | D30: 0 | E30: 0 | G30: 0
A32: Revenue Grand Total | C32: =SUM(C23:C30,C17) -> 0 | D32: =SUM(D23:D30,D17) -> 0 | E32: =SUM(E23:E30,E17) -> 0 | F32: =SUM(F23:F30,F17) -> 0 | G32: =SUM(G23:G30,G17) -> 0
A34: Applicable Assessments
A35: Dean's PFS | B35: 0.0775 | C35: =C$17*$B35 -> 0 | D35: =D$17*$B35 -> 0 | E35: =E$17*$B35 -> 0 | G35: =SUM(C35:E35) -> 0
A36: YNHHS Contratual Assessment (calc. includes gross-up) | B36: 0.117 | C36: =(C$25/(1-B36))-C25 -> 0 | D36: =(D$25/(1-B36))-D25 -> 0 | E36: =(E$25/(1-B36))-E25 -> 0 | G36: =SUM(C36:E36) -> 0
A37: Other Contractual (not YNHHS) | B37: 0.15 | C37: =IF($A$3="Non-Affiliated PDDO",0,(C$26/(1-B37))-C26) -> 0 | D37: =IF($A$3="Non-Affiliated PDDO",0,(D$26/(1-B37))-D26) -> 0 | E37: =IF($A$3="Non-Affiliated PDDO",0,(E$26/(1-B37))-E26) -> 0
A38: Gifts | B38: 0.12 | C38: =C$27*$B38 -> 0 | D38: =D$27*$B38 -> 0 | E38: =E$27*$B38 -> 0 | F38: =F$27*$B38 -> 0 | G38: =SUM(C38:E38) -> 0
A39: Clinical Drug Trial Assessment | B39: 0.2308 | C39: =C$28*$B39 -> 0 | D39: =D$28*$B39 -> 0 | E39: =E$28*$B39 -> 0 | F39: =F$15*$B39 -> 0 | G39: =SUM(C39:E39) -> 0
A40: Department Assessment | B40: 0 | D40: =D17*$B$40 -> 0 | E40: =E17*$B$40 -> 0 | G40: =SUM(C40:E40) -> 0
A41: Yale Medicine Administration | B41: 0.05 | C41: =$B41*(C17) -> 0 | D41: =$B41*(D17) -> 0 | E41: =$B41*(E17) -> 0 | G41: =SUM(C41:E41) -> 0
A42: Yale Medicine Patient Financial Services | B42: 0.0846 | C42: =C$17*$B42 -> 0 | D42: =D$17*$B42 -> 0 | E42: =E$17*$B42 -> 0 | G42: =SUM(C42:E42) -> 0
A43: Revenue Assessments | C43: =SUM(C35:C42) -> 0 | D43: =SUM(D35:D42) -> 0 | E43: 0 | F43: =SUM(F41:F42) -> 0 | G43: =SUM(C43:E43) -> 0
A45: Tack-On, Sabbatical, & Child Rearing (select salaries) | B45: =Assumptions!D9+Assumptions!D10 -> 0.128 | C45: =('Salary Build Sheet (Clinical)'!N48/12)*VLOOKUP('YSM-YM Clinical Plan'!$B$9,Depository1!$M$5:$N$21,2,0) -> 0 | D45: ='Salary Build Sheet (Clinical)'!AB48 -> 0 | E45: ='Salary Build Sheet (Clinical)'!AP48 -> 0 | G45: =SUM(C45:E45) -> 0
A46: Mission Assessment | C46: =C17*$B$46 -> 0 | D46: =D17*$B$46 -> 0 | E46: =E17*$B$46 -> 0 | G46: =SUM(C46:E46) -> 0
A47: Total Assessments | C47: =C45+C43 -> 0 | D47: =D45+D43 -> 0 | E47: 0 | F47: =F45+F44 -> 0 | G47: =SUM(C47:E47) -> 0
A48: Total Assessment Percentage as a % of Revenue | C48: =IFERROR(IF(C47>0,C47/C32," "),0) ->  | D48: =IFERROR(IF(D47>0,D47/D32," "),0) ->  | E48: =IFERROR(IF(E47>0,E47/E32," "),0) ->  | G48: =IFERROR(IF(G47>0,G47/G32," "),0) -> 
A50: Expenses
A51: Faculty Salaries | C51: =('Salary Build Sheet (Clinical)'!L17/12)*VLOOKUP('YSM-YM Clinical Plan'!$B$9,Depository1!$M$5:$N$21,2,0) -> 0 | D51: ='Salary Build Sheet (Clinical)'!Z17 -> 0 | E51: ='Salary Build Sheet (Clinical)'!AN17 -> 0 | G51: =SUM(C51:E51) -> 0
A52: Faculty Incentive Compensation/Bonus | C52: =('Salary Build Sheet (Clinical)'!L24/12)*(VLOOKUP($B$9,Depository1!$M$5:$N$21,2,0)) -> 0 | D52: ='Salary Build Sheet (Clinical)'!Z24 -> 0 | E52: ='Salary Build Sheet (Clinical)'!AJ24 -> 0 | G52: =SUM(C52:E52) -> 0
A53: M&P Staffing | C53: =('Salary Build Sheet (Clinical)'!L33/12)*(VLOOKUP($B$9,Depository1!$M$5:$N$21,2,0)) -> 0 | D53: ='Salary Build Sheet (Clinical)'!Z33 -> 0 | E53: ='Salary Build Sheet (Clinical)'!AN33 -> 0 | G53: 0
A54: C&T Staffing | C54: =('Salary Build Sheet (Clinical)'!L40/12)*(VLOOKUP($B$9,Depository1!$M$5:$N$21,2,0))+'Salary Build Sheet (Clinical)'!H46 -> 0 | D54: ='Salary Build Sheet (Clinical)'!Z40+'Salary Build Sheet (Clinical)'!Z46 -> 0 | E54: ='Salary Build Sheet (Clinical)'!AN40+'Salary Build Sheet (Clinical)'!AN46 -> 0 | G54: =SUM(C54:E54) -> 0
A55: YM CARE Staffing | C55: =('Salary Build Sheet (Clinical)'!L45/12)*(VLOOKUP($B$9,Depository1!$M$5:$N$21,2,0)) -> 0 | D55: ='Salary Build Sheet (Clinical)'!Z45 -> 0 | E55: ='Salary Build Sheet (Clinical)'!AN45 -> 0 | G55: =SUM(C55:E55) -> 0
A56: Fringe | C56: =('Salary Build Sheet (Clinical)'!M48/12)*(VLOOKUP($B$9,Depository1!$M$5:$N$21,2,0)) -> 0 | D56: ='Salary Build Sheet (Clinical)'!AA48 -> 0 | E56: ='Salary Build Sheet (Clinical)'!AO48 -> 0 | G56: =SUM(C56:E56) -> 0
A57: Space/Sessions | C57: ='Non-Salary Build (Clinical)'!C16 -> 0 | D57: ='Non-Salary Build (Clinical)'!D16 -> 0 | E57: ='Non-Salary Build (Clinical)'!E16 -> 0 | G57: 0
A58: Malpractice | C58: ='Non-Salary Build (Clinical)'!C21 -> 0 | D58: ='Non-Salary Build (Clinical)'!D21 -> 0 | E58: ='Non-Salary Build (Clinical)'!E21 -> 0 | G58: 0
A59: Medical & Surgical Supplies | C59: ='Non-Salary Build (Clinical)'!C26 -> 0 | D59: ='Non-Salary Build (Clinical)'!D26 -> 0 | E59: ='Non-Salary Build (Clinical)'!E26 -> 0 | G59: 0
A60: Other Applicable Costs | C60: ='Non-Salary Build (Clinical)'!C38 -> 0 | D60: ='Non-Salary Build (Clinical)'!D38 -> 0 | E60: ='Non-Salary Build (Clinical)'!E38 -> 0 | G60: 0
A61: Total Expenses | C61: =SUM(C51:C60) -> 0 | D61: =SUM(D51:D60) -> 0 | E61: =SUM(E51:E60) -> 0 | G61: =SUM(G51:G60) -> 0
A63: Contribution Margin (Revenue less Direct Cost) | C63: =C32-C61 -> 0 | D63: 0 | E63: 0 | F63: 0 | G63: 0 | H63: 0
A64: Contribution Margin (%) | C64: =IFERROR(IF(C63=0,0,C63/C32),0) -> 0 | D64: =IFERROR(IF(D63=0,0,D63/D32),0) -> 0 | E64: =IFERROR(IF(E63=0,0,E63/E32),0) -> 0 | F64: =IF(F63=0,0,F63/F32) -> 0 | G64: =IFERROR(IF(G63=0,0,G63/G32),0) -> 0
A66: Expense Grand Total | C66: =C47+C61 -> 0 | D66: =D47+D61 -> 0 | E66: 0 | G66: 0 | H66: 0
A68: Total Net Income before Applicable PDDO Assessments | C68: =C32-C66 -> 0 | D68: =D32-D66 -> 0 | E68: =E32-E66 -> 0 | F68: =F32-F66 -> 0 | G68: =G32-G66 -> 0
A69: Net Margin (%) | C69: =IFERROR(IF(C68=0,0,C68/C32),0) -> 0 | D69: =IFERROR(IF(D68=0,0,D68/D32),0) -> 0 | E69: =IFERROR(IF(E68=0,0,E68/E32),0) -> 0 | G69: =IFERROR(IF(G68=0,0,G68/G32),0) -> 0
A71: YNHH(S) Direct Salary and Fringe Benefit Support - Salary | C71: =('Salary Build Sheet (Clinical)'!$G$10*'Salary Build Sheet (Clinical)'!$H$10)/12*(VLOOKUP($B$9,Depository1!$M$5:$N$21,2,0))+('Salary Build Sheet (Clinical)'!$G$11*'Salary Build Sheet (Clinical)'!$H$11)/12*(VLOOKUP($B$9,Depository1!$M$5:$N$21,2,0))+('Salary Build Sheet (Clinical)'!$G$12*'Salary Build Sheet (Clinical)'!$H$12)/12*(VLOOKUP($B$9,Depository1!$M$5:$N$21,2,0))+('Salary Build Sheet (Clinical)'!$G$13*'Salary Build Sheet (Clinical)'!$H$13)/12*(VLOOKUP($B$9,Depository1!$M$5:$N$21,2,0))+('Salary Build Sheet (Clinical)'!$G$14*'Salary Build Sheet (Clinical)'!$H$14)/12*(VLOOKUP($B$9,Depository1!$M$5:$N$21,2,0))+('Salary Build Sheet (Clinical)'!$G$15*'Salary Build Sheet (Clinical)'!$H$15)/12*(VLOOKUP($B$9,Depository1!$M$5:$N$21,2,0))+('Salary Build Sheet (Clinical)'!$G$16*'Salary Build Sheet (Clinical)'!$H$16)/12*(VLOOKUP($B$9,Depository1!$M$5:$N$21,2,0))+C72 -> 0 | D71: =('Salary Build Sheet (Clinical)'!$T$10*'Salary Build Sheet (Clinical)'!$V$10)+('Salary Build Sheet (Clinical)'!$T$11*'Salary Build Sheet (Clinical)'!$V$11)+('Salary Build Sheet (Clinical)'!$T$12*'Salary Build Sheet (Clinical)'!$V$12)+('Salary Build Sheet (Clinical)'!$T$13*'Salary Build Sheet (Clinical)'!$V$13)+('Salary Build Sheet (Clinical)'!$T$14*'Salary Build Sheet (Clinical)'!$V$14)+('Salary Build Sheet (Clinical)'!$T$15*'Salary Build Sheet (Clinical)'!$V$15)+('Salary Build Sheet (Clinical)'!$T$16*'Salary Build Sheet (Clinical)'!$V$16)+D72 -> 0 | E71: =('Salary Build Sheet (Clinical)'!$AH$10*'Salary Build Sheet (Clinical)'!$AJ$10)+('Salary Build Sheet (Clinical)'!$AH$11*'Salary Build Sheet (Clinical)'!$AJ$11)+('Salary Build Sheet (Clinical)'!$AH$12*'Salary Build Sheet (Clinical)'!$AJ$12)+('Salary Build Sheet (Clinical)'!$AH$13*'Salary Build Sheet (Clinical)'!$AJ$13)+('Salary Build Sheet (Clinical)'!$AH$14*'Salary Build Sheet (Clinical)'!$AJ$14)+('Salary Build Sheet (Clinical)'!$AH$15*'Salary Build Sheet (Clinical)'!$AJ$15)+('Salary Build Sheet (Clinical)'!$AH$16*'Salary Build Sheet (Clinical)'!$AJ$16)+E72 -> 0 | F71: =F23 -> 0 | G71: =SUM(C71:F71) -> 0
C72: =(SUMIF('Salary Build Sheet (Clinical)'!$C$19:$C$23,"YNHH Not Metric-Based",'Salary Build Sheet (Clinical)'!$H$19:$H$23))/12*(VLOOKUP($B$9,Depository1!$M$5:$N$21,2,0)) -> 0 | D72: =(SUMIF('Salary Build Sheet (Clinical)'!$C$19:$C$23,"YNHH Not Metric-Based",'Salary Build Sheet (Clinical)'!$V$19:$V$23)) -> 0 | E72: =(SUMIF('Salary Build Sheet (Clinical)'!$C$19:$C$23,"YNHH Not Metric-Based",'Salary Build Sheet (Clinical)'!$AJ$19:$AJ$23)) -> 0
A73: YNHH(S) Direct Salary - YSM Overhead Waived | C73: =(SUMIF('Salary Build Sheet (Clinical)'!$C$19:$C$23,"YNHH Metric-Based",'Salary Build Sheet (Clinical)'!$H$19:$H$23))/12*(VLOOKUP($B$9,Depository1!$M$5:$N$21,2,0)) -> 0 | D73: =SUMIF('Salary Build Sheet (Clinical)'!$C$19:$C$23,"YNHH Metric-Based",'Salary Build Sheet (Clinical)'!$V$19:$V$23) -> 0 | E73: =SUMIF('Salary Build Sheet (Clinical)'!$C$19:$C$23,"YNHH Metric-Based",'Salary Build Sheet (Clinical)'!$AJ$19:$AJ$23) -> 0 | G73: =SUM(C73:F73) -> 0
A74: YNHH(S) Direct Salary and Fringe Benefit Support -Fringe | C74: =(SUM(C72:C73)*Assumptions!$D$15)+(('Salary Build Sheet (Clinical)'!$I$10*'Salary Build Sheet (Clinical)'!$G$10)/12+('Salary Build Sheet (Clinical)'!$I$11*'Salary Build Sheet (Clinical)'!$G$11)/12+('Salary Build Sheet (Clinical)'!$I$12*'Salary Build Sheet (Clinical)'!$G$12)/12+('Salary Build Sheet (Clinical)'!$I$13*'Salary Build Sheet (Clinical)'!$G$13)/12+('Salary Build Sheet (Clinical)'!$I$14*'Salary Build Sheet (Clinical)'!$G$14)/12+('Salary Build Sheet (Clinical)'!$I$15*'Salary Build Sheet (Clinical)'!$G$15)/12+('Salary Build Sheet (Clinical)'!$I$16*'Salary Build Sheet (Clinical)'!$G$16)/12)*(VLOOKUP($B$9,Depository1!$M$5:$N$21,2,0)) -> 0 | D74: =('Salary Build Sheet (Clinical)'!$T$10*'Salary Build Sheet (Clinical)'!$W$10)+('Salary Build Sheet (Clinical)'!$T$11*'Salary Build Sheet (Clinical)'!$W$11)+('Salary Build Sheet (Clinical)'!$T$12*'Salary Build Sheet (Clinical)'!$W$12)+('Salary Build Sheet (Clinical)'!$T$13*'Salary Build Sheet (Clinical)'!$W$13)+('Salary Build Sheet (Clinical)'!$T$14*'Salary Build Sheet (Clinical)'!$W$14)+('Salary Build Sheet (Clinical)'!$T$15*'Salary Build Sheet (Clinical)'!$W$15)+('Salary Build Sheet (Clinical)'!$T$16*'Salary Build Sheet (Clinical)'!$W$16)+(SUM($D$72:$D$73)*Assumptions!$D$15) -> 0 | E74: =('Salary Build Sheet (Clinical)'!$AH$10*'Salary Build Sheet (Clinical)'!$AK$10)+('Salary Build Sheet (Clinical)'!$AH$11*'Salary Build Sheet (Clinical)'!$AK$11)+('Salary Build Sheet (Clinical)'!$AH$12*'Salary Build Sheet (Clinical)'!$AK$12)+('Salary Build Sheet (Clinical)'!$AH$13*'Salary Build Sheet (Clinical)'!$AK$13)+('Salary Build Sheet (Clinical)'!$AH$14*'Salary Build Sheet (Clinical)'!$AK$14)+('Salary Build Sheet (Clinical)'!$AH$15*'Salary Build Sheet (Clinical)'!$AK$15)+('Salary Build Sheet (Clinical)'!$AH$16*'Salary Build Sheet (Clinical)'!$AK$16)+(SUM($E$72:$E$73)*Assumptions!$D$15) -> 0 | G74: =SUM(C74:F74) -> 0
A75: YNHH(S) Direct Salary and Fringe Benefit Support -Tack-On | C75: =(SUM(C73:C74)*Assumptions!$D$15)+(('Salary Build Sheet (Clinical)'!$J$10*'Salary Build Sheet (Clinical)'!$G$10)/12+('Salary Build Sheet (Clinical)'!$J$11*'Salary Build Sheet (Clinical)'!$G$11)/12+('Salary Build Sheet (Clinical)'!$J$12*'Salary Build Sheet (Clinical)'!$G$12)/12+('Salary Build Sheet (Clinical)'!$J$13*'Salary Build Sheet (Clinical)'!$G$13)/12+('Salary Build Sheet (Clinical)'!$J$14*'Salary Build Sheet (Clinical)'!$G$14)/12+('Salary Build Sheet (Clinical)'!$J$15*'Salary Build Sheet (Clinical)'!$G$15)/12+('Salary Build Sheet (Clinical)'!$J$16*'Salary Build Sheet (Clinical)'!$G$16)/12)*(VLOOKUP($B$9,Depository1!$M$5:$N$21,2,0)) -> 0 | D75: =(SUM(D73:D74)*Assumptions!$D$15)+(('Salary Build Sheet (Clinical)'!$J$10*'Salary Build Sheet (Clinical)'!$G$10)/12+('Salary Build Sheet (Clinical)'!$J$11*'Salary Build Sheet (Clinical)'!$G$11)/12+('Salary Build Sheet (Clinical)'!$J$12*'Salary Build Sheet (Clinical)'!$G$12)/12+('Salary Build Sheet (Clinical)'!$J$13*'Salary Build Sheet (Clinical)'!$G$13)/12+('Salary Build Sheet (Clinical)'!$J$14*'Salary Build Sheet (Clinical)'!$G$14)/12+('Salary Build Sheet (Clinical)'!$J$15*'Salary Build Sheet (Clinical)'!$G$15)/12+('Salary Build Sheet (Clinical)'!$J$16*'Salary Build Sheet (Clinical)'!$G$16)/12)*(VLOOKUP($B$9,Depository1!$M$5:$N$21,2,0)) -> 0 | E75: =(SUM(E73:E74)*Assumptions!$D$15)+(('Salary Build Sheet (Clinical)'!$J$10*'Salary Build Sheet (Clinical)'!$G$10)/12+('Salary Build Sheet (Clinical)'!$J$11*'Salary Build Sheet (Clinical)'!$G$11)/12+('Salary Build Sheet (Clinical)'!$J$12*'Salary Build Sheet (Clinical)'!$G$12)/12+('Salary Build Sheet (Clinical)'!$J$13*'Salary Build Sheet (Clinical)'!$G$13)/12+('Salary Build Sheet (Clinical)'!$J$14*'Salary Build Sheet (Clinical)'!$G$14)/12+('Salary Build Sheet (Clinical)'!$J$15*'Salary Build Sheet (Clinical)'!$G$15)/12+('Salary Build Sheet (Clinical)'!$J$16*'Salary Build Sheet (Clinical)'!$G$16)/12)*(VLOOKUP($B$9,Depository1!$M$5:$N$21,2,0)) -> 0
A76: Total Direct Salary and Fringe Cost to YNHH(S) | C76: =C23+C24 -> 0 | D76: =D23+D24 -> 0 | E76: =E23+E24 -> 0 | F76: =SUM(F71:F74) -> 0 | G76: =E76+D76+C76 -> 0
A78: Total YNHH(S) Contractual (include On-Call) | C78: =IF(AND($A$3="YNHHS PDDO",C68<0),-C68,C26) -> 0 | D78: =IF(AND($A$3="YNHHS PDDO",D68<0),-D68,D26) -> 0 | E78: =IF(AND($A$3="YNHHS PDDO",E68<0),-E68,E26) -> 0 | F78: =IF($A$3="YNHHS Contractual - PDDO",-F68,F25) -> 0 | G78: =E78+D78+C78 -> 0
A79: YNHH Overhead | B79: 0.117 | C79: =IF(AND($A$3="YNHH PDDO",(C$68<0)),(-C$68*$B$79)+(C$76)*$B$79,0) -> 0 | D79: =IF(AND($A$3="YNHH PDDO",(D$68<0)),(-D$68*$B$79)+(D$76)*$B$79,0) -> 0 | E79: 0 | F79: =IF($A$3="YNHHS Contractual - PDDO",0,IF(AND($A$3="PDDO - YNHH",F68<0),(F76+F78+-F68),(F76+F78))*$B$79) -> 0 | G79: =E79+D79+C79 -> 0
A80: YNHHS/Other Contract Overhead (calc. includes gross-up) | B80: 0.117 | C80: =IF(AND($A$3="YNHHS PDDO",C$68<0),(-C$68/(1-$B$80)+C$68)+C$76/(1-$B$80)+-C$76,0) -> 0 | D80: =IF(AND($A$3="YNHHS PDDO",D$68<0),(-D$68/(1-$B$80)+D$68)+D$76/(1-$B$80)+-D$76,0) -> 0 | E80: 0 | F80: =IF($A$3="YNHHS Contractual - PDDO",((F78+F76)/0.85))-F78-F76 -> 0 | G80: =E80+D80+C80 -> 0
A81: Non-Affiliated PDDO Overhead (calc. includes gross-up) | B81: 0.15 | C81: =IF(AND($A$3="Non-Affiliated PDDO",C$68<0),(-C$68/(1-$B$81)+C$68)+C$76/(1-$B$81)+-C$76,0) -> 0 | D81: =IF(AND($A$3="Non-Affiliated PDDO",D$68<0),(-D$68/(1-$B$81)+D$68)+D$76/(1-$B$81)+-D$76,0) -> 0 | E81: =IF(AND($A$3="Non-Affiliated PDDO",E$68<0),(-E$68/(1-$B$81)+E$68)+E$76/(1-$B$81)+-E$76,0) -> 0 | G81: =E81+D81+C81 -> 0
A82: Total Payment to Yale University | C82: =IF($A$3="Contractual",(C25+C24+C23+C26+SUM(C36:C37)),(C81+C80+C79+C76+-C68)) -> 0 | D82: =IF($A$3="Contractual",(D25+D24+D23+D26+SUM(D36:D37)),(D81+D80+D79+D76+-D68)) -> 0 | E82: =IF($A$3="Contractual",(E25+E24+E23+E26+SUM(E36:E37)),(E81+E80+E79+E76+-E68)) -> 0 | G82: =E82+D82+C82 -> 0
A84: 1) Expected Volume-generating cFTE (total of all physicians or for one individual).
F85: =-F68/(1-$B$79)+$C$68 -> 0
F86: =F23 -> 0
F87: =F86+F85+F79 -> 0

Sheet AF Summary Template
B4: ='YSM-YM Clinical Plan'!A3 -> 0
C6: ='YSM-YM Clinical Plan'!B8 -> FY 2024 | D6: =CONCATENATE("FY", " ",RIGHT(C6,4)+1) -> FY 2025 | E6: =CONCATENATE("FY", " ",RIGHT(D6,4)+1) -> FY 2026 | F6: FY 23 | G6: FY 24 | H6: 3 Year Total | I6: Comments
B7: cFTE | C7: ='YSM-YM Clinical Plan'!C14 -> 0 | D7: ='YSM-YM Clinical Plan'!D14 -> 0 | E7: ='YSM-YM Clinical Plan'!E14 -> 0 | F7: 1 | G7: =+D7 -> 0
B8: Volume | C8: ='YSM-YM Clinical Plan'!C13 -> 0 | D8: ='YSM-YM Clinical Plan'!D13 -> 0 | E8: ='YSM-YM Clinical Plan'!E13 -> 0 | F8: ='[1]YSM-YM Clinical Plan'!F14 -> 0 | G8: ='[1]YSM-YM Clinical Plan'!G14 -> 1000 | H8: =SUM(C8:E8) -> 0 | I8: ='YSM-YM Clinical Plan'!B13 -> wRVUs
B9: Volume as % of Benchmark
B11: REVENUE
B12: Total Revenues | C12: ='YSM-YM Clinical Plan'!C32 -> 0 | D12: ='YSM-YM Clinical Plan'!D32 -> 0 | E12: ='YSM-YM Clinical Plan'!E32 -> 0 | F12: =+#REF! ->  | G12: =+#REF! ->  | H12: =SUM(C12:E12) -> 0
B14: EXPENSES
B15: Subtotal (Assessments) | C15: ='YSM-YM Clinical Plan'!C47 -> 0 | D15: ='YSM-YM Clinical Plan'!D47 -> 0 | E15: ='YSM-YM Clinical Plan'!E47 -> 0 | H15: =+SUM(C15:G15) -> 0
B16: Subtotal (Faculty Expenses) | C16: ='YSM-YM Clinical Plan'!C51+'YSM-YM Clinical Plan'!C52 -> 0 | D16: ='YSM-YM Clinical Plan'!D51+'YSM-YM Clinical Plan'!D52 -> 0 | E16: ='YSM-YM Clinical Plan'!E51+'YSM-YM Clinical Plan'!E52 -> 0 | H16: =+SUM(C16:G16) -> 0
B17: Subtotal (Staff Expenses) | C17: ='YSM-YM Clinical Plan'!C53+'YSM-YM Clinical Plan'!C54+'YSM-YM Clinical Plan'!C55 -> 0 | D17: ='YSM-YM Clinical Plan'!D53+'YSM-YM Clinical Plan'!D54+'YSM-YM Clinical Plan'!D55 -> 0 | E17: ='YSM-YM Clinical Plan'!E53+'YSM-YM Clinical Plan'!E54+'YSM-YM Clinical Plan'!E55 -> 0 | H17: =+SUM(C17:G17) -> 0
B18: Subtotal (Fringe) | C18: ='YSM-YM Clinical Plan'!C56 -> 0 | D18: ='YSM-YM Clinical Plan'!D56 -> 0 | E18: ='YSM-YM Clinical Plan'!E56 -> 0 | H18: =+SUM(C18:G18) -> 0
B20: Subtotal (Non-labor Expenses) | C20: =SUM('YSM-YM Clinical Plan'!C57:C60) -> 0 | D20: =SUM('YSM-YM Clinical Plan'!D57:D60) -> 0 | E20: =SUM('YSM-YM Clinical Plan'!E57:E60) -> 0 | H20: =+SUM(C20:G20) -> 0
B21: Total Expenses | C21: =C15+C16+C17+C18+C20 -> 0 | D21: =D15+D16+D17+D18+D20 -> 0 | E21: =E15+E16+E17+E18+E20 -> 0 | F21: =F15+F16+F17+F20 -> 0 | G21: 0 | H21: =+SUM(C21:G21) -> 0
B23: Net Over/(Under) | C23: =C12-C21 -> 0 | D23: =D12-D21 -> 0 | E23: =E12-E21 -> 0 | F23: =F12-F21 ->  | G23: =G12-G21 ->  | H23: =SUM(C23:E23) -> 0
B25: Non-PDDO Support | C25: ='YSM-YM Clinical Plan'!C76 -> 0 | D25: ='YSM-YM Clinical Plan'!D76 -> 0 | E25: ='YSM-YM Clinical Plan'!E76 -> 0 | H25: =SUM(C25:E25) -> 0
B26: Other Support and Gross-Up | C26: ='YSM-YM Clinical Plan'!C78+'YSM-YM Clinical Plan'!C79+'YSM-YM Clinical Plan'!C80 -> 0 | D26: ='YSM-YM Clinical Plan'!D78+'YSM-YM Clinical Plan'!D79+'YSM-YM Clinical Plan'!D80 -> 0 | E26: ='YSM-YM Clinical Plan'!E78+'YSM-YM Clinical Plan'!E79+'YSM-YM Clinical Plan'!E80 -> 0 | H26: =SUM(C26:E26) -> 0
B28: Total Payment from YNHH(S) | C28: ='YSM-YM Clinical Plan'!C82 -> 0 | D28: ='YSM-YM Clinical Plan'!D82 -> 0 | E28: ='YSM-YM Clinical Plan'!E82 -> 0 | F28: =+IF(F23<1,F23*1.15,F23) ->  | G28: =+IF(G23<1,G23*1.15,G23) ->  | H28: =SUM(C28:E28) -> 0

Sheet Salary Build Sheet (Clinical)
G3: Assume compensation is for 1.0 FTE; formula will prorate for Clinical effort
G4: Salary support should be proportional to 1.0 FTE
B5: Salary Build Plan
D6: (impacts family leave fringe) | F6: Year One | T6: Year Two | AH6: Year Three
C7: Position | D7: Clinical or | E7: Grant | F7: Total Clinical | G7: Total Salary Support FTE | H7: Full FTE | K7: Year One | L7: Clinical Total | M7: Clinical Total | N7: Clinical Total | O7: Clinical Total | P7: Salary Support | Q7: Salary Support | R7: Salary Support | S7: Salary Support | T7: Total Clinical | U7: Total Salary Support FTE | Y7: Year Two | Z7: Clinical Total | AA7: Clinical Total | AB7: Clinical Total | AC7: Clinical Total | AD7: Salary Support | AE7: Salary Support | AF7: Salary Support | AG7: Salary Support | AH7: Total Clinical | AI7: Total Salary Support FTE | AM7: Year Three | AN7: Clinical Total | AO7: Clinical Total | AP7: Clinical Total | AQ7: Clinical Total | AR7: Salary Support | AS7: Salary Support | AT7: Salary Support | AU7: Salary Support | AV7: Cumulative
B8: Type of Position/Name | C8: Description | D8: Non-Clinical? | E8: Funded? | F8: FTE (not cFTE) | H8: Compensation | I8: Fringe | J8: Tack-On | K8: Total | L8: Comp | M8: Fringe | N8: Tack-On | O8: Total | P8: Comp | Q8: Fringe | R8: Tack-On | S8: Total | T8: FTE (not cFTE) | V8: Comp.1 | W8: Fringe | X8: Tack-On | Y8: Total | Z8: Comp | AA8: Fringe | AB8: Tack-On | AC8: Total | AD8: Comp | AE8: Fringe | AF8: Tack-On | AG8: Total | AH8: FTE (not cFTE) | AJ8: Comp.1 | AK8: Fringe | AL8: Tack-On | AM8: Total | AN8: Comp | AO8: Fringe | AP8: Tack-On | AQ8: Total | AR8: Comp | AS8: Fringe | AT8: Tack-On | AU8: Total | AV8: Clinica lStaff Costs
B9: Faculty Staffing
D10: Clinical | E10: No | I10: =IF(D10="Non-Clinical",IF($E10="Yes",IF(H10>Assumptions!$D$18,(Assumptions!$D$18*Assumptions!$D$8),H10*Assumptions!$D$8),IF(H10>Assumptions!$D$18,(Assumptions!$D$18*Assumptions!$D$6)+(('Salary Build Sheet (Clinical)'!H10-Assumptions!$D$18)*Assumptions!$D$13),H10*Assumptions!$D$6)),IF($E10="Yes",IF(H10>Assumptions!$D$18,(Assumptions!$D$18*Assumptions!$D$8),H10*Assumptions!$D$8),IF(H10>Assumptions!$D$18,(Assumptions!$D$18*Assumptions!$D$7)+(('Salary Build Sheet (Clinical)'!H10-Assumptions!$D$18)*Assumptions!$D$14),H10*Assumptions!$D$7))) -> 0 | J10: =IF(E10="Non-Clinical",IF($E10="Yes",IF(H10>Assumptions!$D$18,(Assumptions!$D$18*0),H10*0),IF(H10>Assumptions!$D$18,(Assumptions!$D$18*(Assumptions!$D$9+Assumptions!$D$10))+(('Salary Build Sheet (Clinical)'!H10-Assumptions!$D$18)*0),H10*(Assumptions!$D$9+Assumptions!$D$10))),IF($E10="Yes",IF(H10>Assumptions!$D$18,(Assumptions!$D$18*0),H10*0),IF(H10>Assumptions!$D$18,(Assumptions!$D$18*(Assumptions!$D$9+Assumptions!$D$10))+(('Salary Build Sheet (Clinical)'!H10-Assumptions!$D$18)*0),H10*(Assumptions!$D$9+Assumptions!$D$10)))) -> 0 | K10: =I10+H10+J10 -> 0 | L10: =H10*F10 -> 0 | M10: =I10*F10 -> 0 | N10: =J10*F10 -> 0 | O10: =SUM(L10:N10) -> 0 | P10: =H10*G10 -> 0 | Q10: =I10*G10 -> 0 | R10: =J10*G10 -> 0 | S10: =SUM(P10:R10) -> 0 | W10: =IF(J10="Non-Clinical",IF($E10="Yes",IF(V10>Assumptions!$D$18,(Assumptions!$D$18*Assumptions!$D$8),V10*Assumptions!$D$8),IF(V10>Assumptions!$D$18,(Assumptions!$D$18*Assumptions!$D$6)+(('Salary Build Sheet (Clinical)'!V10-Assumptions!$D$18)*Assumptions!$D$13),V10*Assumptions!$D$6)),IF($E10="Yes",IF(V10>Assumptions!$D$18,(Assumptions!$D$18*Assumptions!$D$8),V10*Assumptions!$D$8),IF(V10>Assumptions!$D$18,(Assumptions!$D$18*Assumptions!$D$7)+(('Salary Build Sheet (Clinical)'!V10-Assumptions!$D$18)*Assumptions!$D$14),V10*Assumptions!$D$7))) -> 0 | X10: =IF(K10="Non-Clinical",IF($E10="Yes",IF(V10>Assumptions!$D$18,(Assumptions!$D$18*0),V10*0),IF(V10>Assumptions!$D$18,(Assumptions!$D$18*(Assumptions!$D$9+Assumptions!$D$10))+(('Salary Build Sheet (Clinical)'!V10-Assumptions!$D$18)*0),V10*(Assumptions!$D$9+Assumptions!$D$10))),IF($E10="Yes",IF(V10>Assumptions!$D$18,(Assumptions!$D$18*0),V10*0),IF(V10>Assumptions!$D$18,(Assumptions!$D$18*(Assumptions!$D$9+Assumptions!$D$10))+(('Salary Build Sheet (Clinical)'!V10-Assumptions!$D$18)*0),V10*(Assumptions!$D$9+Assumptions!$D$10)))) -> 0 | Y10: =W10+V10+X10 -> 0 | Z10: =V10*T10 -> 0 | AA10: =W10*T10 -> 0 | AB10: =X10*T10 -> 0 | AC10: =SUM(Z10:AB10) -> 0 | AD10: =V10*U10 -> 0 | AE10: =W10*U10 -> 0 | AF10: =X10*U10 -> 0 | AG10: =SUM(AD10:AF10) -> 0 | AK10: =IF(X10="Non-Clinical",IF($E10="Yes",IF(AJ10>Assumptions!$D$18,(Assumptions!$D$18*Assumptions!$D$8),AJ10*Assumptions!$D$8),IF(AJ10>Assumptions!$D$18,(Assumptions!$D$18*Assumptions!$D$6)+(('Salary Build Sheet (Clinical)'!AJ10-Assumptions!$D$18)*Assumptions!$D$13),AJ10*Assumptions!$D$6)),IF($E10="Yes",IF(AJ10>Assumptions!$D$18,(Assumptions!$D$18*Assumptions!$D$8),AJ10*Assumptions!$D$8),IF(AJ10>Assumptions!$D$18,(Assumptions!$D$18*Assumptions!$D$7)+(('Salary Build Sheet (Clinical)'!AJ10-Assumptions!$D$18)*Assumptions!$D$14),AJ10*Assumptions!$D$7))) -> 0 | AL10: =IF(Y10="Non-Clinical",IF($E10="Yes",IF(AJ10>Assumptions!$D$18,(Assumptions!$D$18*0),AJ10*0),IF(AJ10>Assumptions!$D$18,(Assumptions!$D$18*(Assumptions!$D$9+Assumptions!$D$10))+(('Salary Build Sheet (Clinical)'!AJ10-Assumptions!$D$18)*0),AJ10*(Assumptions!$D$9+Assumptions!$D$10))),IF($E10="Yes",IF(AJ10>Assumptions!$D$18,(Assumptions!$D$18*0),AJ10*0),IF(AJ10>Assumptions!$D$18,(Assumptions!$D$18*(Assumptions!$D$9+Assumptions!$D$10))+(('Salary Build Sheet (Clinical)'!AJ10-Assumptions!$D$18)*0),AJ10*(Assumptions!$D$9+Assumptions!$D$10)))) -> 0 | AM10: =AK10+AJ10+AL10 -> 0 | AN10: =AJ10*AH10 -> 0 | AO10: =AK10*AH10 -> 0 | AP10: =AL10*AH10 -> 0 | AQ10: =SUM(AN10:AP10) -> 0 | AR10: =AJ10*AI10 -> 0 | AS10: =AK10*AI10 -> 0 | AT10: =AL10*AI10 -> 0 | AU10: =SUM(AR10:AT10) -> 0 | AV10: =AQ10+AC10+O10 -> 0 | AY10: =IF(G10>0,(G10/#REF!)*H10," ") ->  | AZ10: =IF(G10>0,(G10/#REF!)*W10," ") ->  | BA10: =SUM(AY10:AZ10) -> 0
D11: Clinical | E11: No | I11: =IF(D11="Non-Clinical",IF($E11="Yes",IF(H11>Assumptions!$D$18,(Assumptions!$D$18*Assumptions!$D$8),H11*Assumptions!$D$8),IF(H11>Assumptions!$D$18,(Assumptions!$D$18*Assumptions!$D$6)+(('Salary Build Sheet (Clinical)'!H11-Assumptions!$D$18)*Assumptions!$D$13),H11*Assumptions!$D$6)),IF($E11="Yes",IF(H11>Assumptions!$D$18,(Assumptions!$D$18*Assumptions!$D$8),H11*Assumptions!$D$8),IF(H11>Assumptions!$D$18,(Assumptions!$D$18*Assumptions!$D$7)+(('Salary Build Sheet (Clinical)'!H11-Assumptions!$D$18)*Assumptions!$D$14),H11*Assumptions!$D$7))) -> 0 | J11: =IF(E11="Non-Clinical",IF($E11="Yes",IF(H11>Assumptions!$D$18,(Assumptions!$D$18*0),H11*0),IF(H11>Assumptions!$D$18,(Assumptions!$D$18*(Assumptions!$D$9+Assumptions!$D$10))+(('Salary Build Sheet (Clinical)'!H11-Assumptions!$D$18)*0),H11*(Assumptions!$D$9+Assumptions!$D$10))),IF($E11="Yes",IF(H11>Assumptions!$D$18,(Assumptions!$D$18*0),H11*0),IF(H11>Assumptions!$D$18,(Assumptions!$D$18*(Assumptions!$D$9+Assumptions!$D$10))+(('Salary Build Sheet (Clinical)'!H11-Assumptions!$D$18)*0),H11*(Assumptions!$D$9+Assumptions!$D$10)))) -> 0 | K11: =I11+H11+J11 -> 0 | L11: =H11*F11 -> 0 | M11: =I11*F11 -> 0 | N11: =J11*F11 -> 0 | O11: =SUM(L11:N11) -> 0 | P11: =H11*G11 -> 0 | Q11: =I11*G11 -> 0 | R11: =J11*G11 -> 0 | S11: =SUM(P11:R11) -> 0 | W11: =IF(J11="Non-Clinical",IF($E11="Yes",IF(V11>Assumptions!$D$18,(Assumptions!$D$18*Assumptions!$D$8),V11*Assumptions!$D$8),IF(V11>Assumptions!$D$18,(Assumptions!$D$18*Assumptions!$D$6)+(('Salary Build Sheet (Clinical)'!V11-Assumptions!$D$18)*Assumptions!$D$13),V11*Assumptions!$D$6)),IF($E11="Yes",IF(V11>Assumptions!$D$18,(Assumptions!$D$18*Assumptions!$D$8),V11*Assumptions!$D$8),IF(V11>Assumptions!$D$18,(Assumptions!$D$18*Assumptions!$D$7)+(('Salary Build Sheet (Clinical)'!V11-Assumptions!$D$18)*Assumptions!$D$14),V11*Assumptions!$D$7))) -> 0 | X11: =IF(K11="Non-Clinical",IF($E11="Yes",IF(V11>Assumptions!$D$18,(Assumptions!$D$18*0),V11*0),IF(V11>Assumptions!$D$18,(Assumptions!$D$18*(Assumptions!$D$9+Assumptions!$D$10))+(('Salary Build Sheet (Clinical)'!V11-Assumptions!$D$18)*0),V11*(Assumptions!$D$9+Assumptions!$D$10))),IF($E11="Yes",IF(V11>Assumptions!$D$18,(Assumptions!$D$18*0),V11*0),IF(V11>Assumptions!$D$18,(Assumptions!$D$18*(Assumptions!$D$9+Assumptions!$D$10))+(('Salary Build Sheet (Clinical)'!V11-Assumptions!$D$18)*0),V11*(Assumptions!$D$9+Assumptions!$D$10)))) -> 0 | Y11: =W11+V11+X11 -> 0 | Z11: =V11*T11 -> 0 | AA11: =W11*T11 -> 0 | AB11: =X11*T11 -> 0 | AC11: =SUM(Z11:AB11) -> 0 | AD11: =V11*U11 -> 0 | AE11: =W11*U11 -> 0 | AF11: =X11*U11 -> 0 | AG11: =SUM(AD11:AF11) -> 0 | AK11: =IF(X11="Non-Clinical",IF($E11="Yes",IF(AJ11>Assumptions!$D$18,(Assumptions!$D$18*Assumptions!$D$8),AJ11*Assumptions!$D$8),IF(AJ11>Assumptions!$D$18,(Assumptions!$D$18*Assumptions!$D$6)+(('Salary Build Sheet (Clinical)'!AJ11-Assumptions!$D$18)*Assumptions!$D$13),AJ11*Assumptions!$D$6)),IF($E11="Yes",IF(AJ11>Assumptions!$D$18,(Assumptions!$D$18*Assumptions!$D$8),AJ11*Assumptions!$D$8),IF(AJ11>Assumptions!$D$18,(Assumptions!$D$18*Assumptions!$D$7)+(('Salary Build Sheet (Clinical)'!AJ11-Assumptions!$D$18)*Assumptions!$D$14),AJ11*Assumptions!$D$7))) -> 0 | AL11: =IF(Y11="Non-Clinical",IF($E11="Yes",IF(AJ11>Assumptions!$D$18,(Assumptions!$D$18*0),AJ11*0),IF(AJ11>Assumptions!$D$18,(Assumptions!$D$18*(Assumptions!$D$9+Assumptions!$D$10))+(('Salary Build Sheet (Clinical)'!AJ11-Assumptions!$D$18)*0),AJ11*(Assumptions!$D$9+Assumptions!$D$10))),IF($E11="Yes",IF(AJ11>Assumptions!$D$18,(Assumptions!$D$18*0),AJ11*0),IF(AJ11>Assumptions!$D$18,(Assumptions!$D$18*(Assumptions!$D$9+Assumptions!$D$10))+(('Salary Build Sheet (Clinical)'!AJ11-Assumptions!$D$18)*0),AJ11*(Assumptions!$D$9+Assumptions!$D$10)))) -> 0 | AM11: =AK11+AJ11+AL11 -> 0 | AN11: 0 | AO11: 0 | AP11: 0 | AQ11: =SUM(AN11:AP11) -> 0 | AR11: =AJ11*AI11 -> 0 | AS11: =AK11*AI11 -> 0 | AT11: =AL11*AI11 -> 0 | AU11: =SUM(AR11:AT11) -> 0 | AV11: 0 | AY11: =IF(G11>0,(G11/#REF!)*H11," ") ->  | AZ11: =IF(G11>0,(G11/#REF!)*W11," ") ->  | BA11: =SUM(AY11:AZ11) -> 0
D12: Clinical | E12: No | I12: =IF(D12="Non-Clinical",IF($E12="Yes",IF(H12>Assumptions!$D$18,(Assumptions!$D$18*Assumptions!$D$8),H12*Assumptions!$D$8),IF(H12>Assumptions!$D$18,(Assumptions!$D$18*Assumptions!$D$6)+(('Salary Build Sheet (Clinical)'!H12-Assumptions!$D$18)*Assumptions!$D$13),H12*Assumptions!$D$6)),IF($E12="Yes",IF(H12>Assumptions!$D$18,(Assumptions!$D$18*Assumptions!$D$8),H12*Assumptions!$D$8),IF(H12>Assumptions!$D$18,(Assumptions!$D$18*Assumptions!$D$7)+(('Salary Build Sheet (Clinical)'!H12-Assumptions!$D$18)*Assumptions!$D$14),H12*Assumptions!$D$7))) -> 0 | J12: =IF(E12="Non-Clinical",IF($E12="Yes",IF(H12>Assumptions!$D$18,(Assumptions!$D$18*0),H12*0),IF(H12>Assumptions!$D$18,(Assumptions!$D$18*(Assumptions!$D$9+Assumptions!$D$10))+(('Salary Build Sheet (Clinical)'!H12-Assumptions!$D$18)*0),H12*(Assumptions!$D$9+Assumptions!$D$10))),IF($E12="Yes",IF(H12>Assumptions!$D$18,(Assumptions!$D$18*0),H12*0),IF(H12>Assumptions!$D$18,(Assumptions!$D$18*(Assumptions!$D$9+Assumptions!$D$10))+(('Salary Build Sheet (Clinical)'!H12-Assumptions!$D$18)*0),H12*(Assumptions!$D$9+Assumptions!$D$10)))) -> 0 | K12: 0 | L12: 0 | M12: 0 | N12: 0 | O12: 0 | P12: 0 | Q12: 0 | R12: 0 | S12: 0 | W12: =IF(J12="Non-Clinical",IF($E12="Yes",IF(V12>Assumptions!$D$18,(Assumptions!$D$18*Assumptions!$D$8),V12*Assumptions!$D$8),IF(V12>Assumptions!$D$18,(Assumptions!$D$18*Assumptions!$D$6)+(('Salary Build Sheet (Clinical)'!V12-Assumptions!$D$18)*Assumptions!$D$13),V12*Assumptions!$D$6)),IF($E12="Yes",IF(V12>Assumptions!$D$18,(Assumptions!$D$18*Assumptions!$D$8),V12*Assumptions!$D$8),IF(V12>Assumptions!$D$18,(Assumptions!$D$18*Assumptions!$D$7)+(('Salary Build Sheet (Clinical)'!V12-Assumptions!$D$18)*Assumptions!$D$14),V12*Assumptions!$D$7))) -> 0 | X12: =IF(K12="Non-Clinical",IF($E12="Yes",IF(V12>Assumptions!$D$18,(Assumptions!$D$18*0),V12*0),IF(V12>Assumptions!$D$18,(Assumptions!$D$18*(Assumptions!$D$9+Assumptions!$D$10))+(('Salary Build Sheet (Clinical)'!V12-Assumptions!$D$18)*0),V12*(Assumptions!$D$9+Assumptions!$D$10))),IF($E12="Yes",IF(V12>Assumptions!$D$18,(Assumptions!$D$18*0),V12*0),IF(V12>Assumptions!$D$18,(Assumptions!$D$18*(Assumptions!$D$9+Assumptions!$D$10))+(('Salary Build Sheet (Clinical)'!V12-Assumptions!$D$18)*0),V12*(Assumptions!$D$9+Assumptions!$D$10)))) -> 0 | Y12: 0 | Z12: 0 | AA12: 0 | AB12: 0 | AC12: 0 | AD12: 0 | AE12: 0 | AF12: 0 | AG12: 0 | AK12: =IF(X12="Non-Clinical",IF($E12="Yes",IF(AJ12>Assumptions!$D$18,(Assumptions!$D$18*Assumptions!$D$8),AJ12*Assumptions!$D$8),IF(AJ12>Assumptions!$D$18,(Assumptions!$D$18*Assumptions!$D$6)+(('Salary Build Sheet (Clinical)'!AJ12-Assumptions!$D$18)*Assumptions!$D$13),AJ12*Assumptions!$D$6)),IF($E12="Yes",IF(AJ12>Assumptions!$D$18,(Assumptions!$D$18*Assumptions!$D$8),AJ12*Assumptions!$D$8),IF(AJ12>Assumptions!$D$18,(Assumptions!$D$18*Assumptions!$D$7)+(('Salary Build Sheet (Clinical)'!AJ12-Assumptions!$D$18)*Assumptions!$D$14),AJ12*Assumptions!$D$7))) -> 0 | AL12: =IF(Y12="Non-Clinical",IF($E12="Yes",IF(AJ12>Assumptions!$D$18,(Assumptions!$D$18*0),AJ12*0),IF(AJ12>Assumptions!$D$18,(Assumptions!$D$18*(Assumptions!$D$9+Assumptions!$D$10))+(('Salary Build Sheet (Clinical)'!AJ12-Assumptions!$D$18)*0),AJ12*(Assumptions!$D$9+Assumptions!$D$10))),IF($E12="Yes",IF(AJ12>Assumptions!$D$18,(Assumptions!$D$18*0),AJ12*0),IF(AJ12>Assumptions!$D$18,(Assumptions!$D$18*(Assumptions!$D$9+Assumptions!$D$10))+(('Salary Build Sheet (Clinical)'!AJ12-Assumptions!$D$18)*0),AJ12*(Assumptions!$D$9+Assumptions!$D$10)))) -> 0 | AM12: 0 | AN12: 0 | AO12: 0 | AP12: 0 | AQ12: 0 | AR12: 0 | AS12: 0 | AT12: 0 | AU12: 0 | AV12: 0 | AY12: =IF(G12>0,(G12/#REF!)*H12," ") ->  | AZ12: =IF(G12>0,(G12/#REF!)*W12," ") ->  | BA12: 0
D13: Clinical | E13: No | I13: =IF(D13="Non-Clinical",IF($E13="Yes",IF(H13>Assumptions!$D$18,(Assumptions!$D$18*Assumptions!$D$8),H13*Assumptions!$D$8),IF(H13>Assumptions!$D$18,(Assumptions!$D$18*Assumptions!$D$6)+(('Salary Build Sheet (Clinical)'!H13-Assumptions!$D$18)*Assumptions!$D$13),H13*Assumptions!$D$6)),IF($E13="Yes",IF(H13>Assumptions!$D$18,(Assumptions!$D$18*Assumptions!$D$8),H13*Assumptions!$D$8),IF(H13>Assumptions!$D$18,(Assumptions!$D$18*Assumptions!$D$7)+(('Salary Build Sheet (Clinical)'!H13-Assumptions!$D$18)*Assumptions!$D$14),H13*Assumptions!$D$7))) -> 0 | J13: =IF(E13="Non-Clinical",IF($E13="Yes",IF(H13>Assumptions!$D$18,(Assumptions!$D$18*0),H13*0),IF(H13>Assumptions!$D$18,(Assumptions!$D$18*(Assumptions!$D$9+Assumptions!$D$10))+(('Salary Build Sheet (Clinical)'!H13-Assumptions!$D$18)*0),H13*(Assumptions!$D$9+Assumptions!$D$10))),IF($E13="Yes",IF(H13>Assumptions!$D$18,(Assumptions!$D$18*0),H13*0),IF(H13>Assumptions!$D$18,(Assumptions!$D$18*(Assumptions!$D$9+Assumptions!$D$10))+(('Salary Build Sheet (Clinical)'!H13-Assumptions!$D$18)*0),H13*(Assumptions!$D$9+Assumptions!$D$10)))) -> 0 | K13: 0 | L13: 0 | M13: 0 | N13: 0 | O13: 0 | P13: 0 | Q13: 0 | R13: 0 | S13: 0 | W13: =IF(J13="Non-Clinical",IF($E13="Yes",IF(V13>Assumptions!$D$18,(Assumptions!$D$18*Assumptions!$D$8),V13*Assumptions!$D$8),IF(V13>Assumptions!$D$18,(Assumptions!$D$18*Assumptions!$D$6)+(('Salary Build Sheet (Clinical)'!V13-Assumptions!$D$18)*Assumptions!$D$13),V13*Assumptions!$D$6)),IF($E13="Yes",IF(V13>Assumptions!$D$18,(Assumptions!$D$18*Assumptions!$D$8),V13*Assumptions!$D$8),IF(V13>Assumptions!$D$18,(Assumptions!$D$18*Assumptions!$D$7)+(('Salary Build Sheet (Clinical)'!V13-Assumptions!$D$18)*Assumptions!$D$14),V13*Assumptions!$D$7))) -> 0 | X13: =IF(K13="Non-Clinical",IF($E13="Yes",IF(V13>Assumptions!$D$18,(Assumptions!$D$18*0),V13*0),IF(V13>Assumptions!$D$18,(Assumptions!$D$18*(Assumptions!$D$9+Assumptions!$D$10))+(('Salary Build Sheet (Clinical)'!V13-Assumptions!$D$18)*0),V13*(Assumptions!$D$9+Assumptions!$D$10))),IF($E13="Yes",IF(V13>Assumptions!$D$18,(Assumptions!$D$18*0),V13*0),IF(V13>Assumptions!$D$18,(Assumptions!$D$18*(Assumptions!$D$9+Assumptions!$D$10))+(('Salary Build Sheet (Clinical)'!V13-Assumptions!$D$18)*0),V13*(Assumptions!$D$9+Assumptions!$D$10)))) -> 0 | Y13: 0 | Z13: 0 | AA13: 0 | AB13: 0 | AC13: 0 | AD13: 0 | AE13: 0 | AF13: 0 | AG13: 0 | AK13: =IF(X13="Non-Clinical",IF($E13="Yes",IF(AJ13>Assumptions!$D$18,(Assumptions!$D$18*Assumptions!$D$8),AJ13*Assumptions!$D$8),IF(AJ13>Assumptions!$D$18,(Assumptions!$D$18*Assumptions!$D$6)+(('Salary Build Sheet (Clinical)'!AJ13-Assumptions!$D$18)*Assumptions!$D$13),AJ13*Assumptions!$D$6)),IF($E13="Yes",IF(AJ13>Assumptions!$D$18,(Assumptions!$D$18*Assumptions!$D$8),AJ13*Assumptions!$D$8),IF(AJ13>Assumptions!$D$18,(Assumptions!$D$18*Assumptions!$D$7)+(('Salary Build Sheet (Clinical)'!AJ13-Assumptions!$D$18)*Assumptions!$D$14),AJ13*Assumptions!$D$7))) -> 0 | AL13: =IF(Y13="Non-Clinical",IF($E13="Yes",IF(AJ13>Assumptions!$D$18,(Assumptions!$D$18*0),AJ13*0),IF(AJ13>Assumptions!$D$18,(Assumptions!$D$18*(Assumptions!$D$9+Assumptions!$D$10))+(('Salary Build Sheet (Clinical)'!AJ13-Assumptions!$D$18)*0),AJ13*(Assumptions!$D$9+Assumptions!$D$10))),IF($E13="Yes",IF(AJ13>Assumptions!$D$18,(Assumptions!$D$18*0),AJ13*0),IF(AJ13>Assumptions!$D$18,(Assumptions!$D$18*(Assumptions!$D$9+Assumptions!$D$10))+(('Salary Build Sheet (Clinical)'!AJ13-Assumptions!$D$18)*0),AJ13*(Assumptions!$D$9+Assumptions!$D$10)))) -> 0 | AM13: 0 | AN13: 0 | AO13: 0 | AP13: 0 | AQ13: 0 | AR13: 0 | AS13: 0 | AT13: 0 | AU13: 0 | AV13: 0 | AY13: =IF(G13>0,(G13/#REF!)*H13," ") ->  | AZ13: =IF(G13>0,(G13/#REF!)*W13," ") ->  | BA13: 0
D14: Clinical | E14: No | I14: =IF(D14="Non-Clinical",IF($E14="Yes",IF(H14>Assumptions!$D$18,(Assumptions!$D$18*Assumptions!$D$8),H14*Assumptions!$D$8),IF(H14>Assumptions!$D$18,(Assumptions!$D$18*Assumptions!$D$6)+(('Salary Build Sheet (Clinical)'!H14-Assumptions!$D$18)*Assumptions!$D$13),H14*Assumptions!$D$6)),IF($E14="Yes",IF(H14>Assumptions!$D$18,(Assumptions!$D$18*Assumptions!$D$8),H14*Assumptions!$D$8),IF(H14>Assumptions!$D$18,(Assumptions!$D$18*Assumptions!$D$7)+(('Salary Build Sheet (Clinical)'!H14-Assumptions!$D$18)*Assumptions!$D$14),H14*Assumptions!$D$7))) -> 0 | J14: =IF(E14="Non-Clinical",IF($E14="Yes",IF(H14>Assumptions!$D$18,(Assumptions!$D$18*0),H14*0),IF(H14>Assumptions!$D$18,(Assumptions!$D$18*(Assumptions!$D$9+Assumptions!$D$10))+(('Salary Build Sheet (Clinical)'!H14-Assumptions!$D$18)*0),H14*(Assumptions!$D$9+Assumptions!$D$10))),IF($E14="Yes",IF(H14>Assumptions!$D$18,(Assumptions!$D$18*0),H14*0),IF(H14>Assumptions!$D$18,(Assumptions!$D$18*(Assumptions!$D$9+Assumptions!$D$10))+(('Salary Build Sheet (Clinical)'!H14-Assumptions!$D$18)*0),H14*(Assumptions!$D$9+Assumptions!$D$10)))) -> 0 | K14: 0 | L14: 0 | M14: 0 | N14: 0 | O14: 0 | P14: 0 | Q14: 0 | R14: 0 | S14: 0 | W14: =IF(J14="Non-Clinical",IF($E14="Yes",IF(V14>Assumptions!$D$18,(Assumptions!$D$18*Assumptions!$D$8),V14*Assumptions!$D$8),IF(V14>Assumptions!$D$18,(Assumptions!$D$18*Assumptions!$D$6)+(('Salary Build Sheet (Clinical)'!V14-Assumptions!$D$18)*Assumptions!$D$13),V14*Assumptions!$D$6)),IF($E14="Yes",IF(V14>Assumptions!$D$18,(Assumptions!$D$18*Assumptions!$D$8),V14*Assumptions!$D$8),IF(V14>Assumptions!$D$18,(Assumptions!$D$18*Assumptions!$D$7)+(('Salary Build Sheet (Clinical)'!V14-Assumptions!$D$18)*Assumptions!$D$14),V14*Assumptions!$D$7))) -> 0 | X14: =IF(K14="Non-Clinical",IF($E14="Yes",IF(V14>Assumptions!$D$18,(Assumptions!$D$18*0),V14*0),IF(V14>Assumptions!$D$18,(Assumptions!$D$18*(Assumptions!$D$9+Assumptions!$D$10))+(('Salary Build Sheet (Clinical)'!V14-Assumptions!$D$18)*0),V14*(Assumptions!$D$9+Assumptions!$D$10))),IF($E14="Yes",IF(V14>Assumptions!$D$18,(Assumptions!$D$18*0),V14*0),IF(V14>Assumptions!$D$18,(Assumptions!$D$18*(Assumptions!$D$9+Assumptions!$D$10))+(('Salary Build Sheet (Clinical)'!V14-Assumptions!$D$18)*0),V14*(Assumptions!$D$9+Assumptions!$D$10)))) -> 0 | Y14: 0 | Z14: 0 | AA14: 0 | AB14: 0 | AC14: 0 | AD14: 0 | AE14: 0 | AF14: 0 | AG14: 0 | AK14: =IF(X14="Non-Clinical",IF($E14="Yes",IF(AJ14>Assumptions!$D$18,(Assumptions!$D$18*Assumptions!$D$8),AJ14*Assumptions!$D$8),IF(AJ14>Assumptions!$D$18,(Assumptions!$D$18*Assumptions!$D$6)+(('Salary Build Sheet (Clinical)'!AJ14-Assumptions!$D$18)*Assumptions!$D$13),AJ14*Assumptions!$D$6)),IF($E14="Yes",IF(AJ14>Assumptions!$D$18,(Assumptions!$D$18*Assumptions!$D$8),AJ14*Assumptions!$D$8),IF(AJ14>Assumptions!$D$18,(Assumptions!$D$18*Assumptions!$D$7)+(('Salary Build Sheet (Clinical)'!AJ14-Assumptions!$D$18)*Assumptions!$D$14),AJ14*Assumptions!$D$7))) -> 0 | AL14: =IF(Y14="Non-Clinical",IF($E14="Yes",IF(AJ14>Assumptions!$D$18,(Assumptions!$D$18*0),AJ14*0),IF(AJ14>Assumptions!$D$18,(Assumptions!$D$18*(Assumptions!$D$9+Assumptions!$D$10))+(('Salary Build Sheet (Clinical)'!AJ14-Assumptions!$D$18)*0),AJ14*(Assumptions!$D$9+Assumptions!$D$10))),IF($E14="Yes",IF(AJ14>Assumptions!$D$18,(Assumptions!$D$18*0),AJ14*0),IF(AJ14>Assumptions!$D$18,(Assumptions!$D$18*(Assumptions!$D$9+Assumptions!$D$10))+(('Salary Build Sheet (Clinical)'!AJ14-Assumptions!$D$18)*0),AJ14*(Assumptions!$D$9+Assumptions!$D$10)))) -> 0 | AM14: 0 | AN14: 0 | AO14: 0 | AP14: 0 | AQ14: 0 | AR14: 0 | AS14: 0 | AT14: 0 | AU14: 0 | AV14: 0 | AY14: =IF(G14>0,(G14/#REF!)*H14," ") ->  | AZ14: =IF(G14>0,(G14/#REF!)*W14," ") ->  | BA14: 0
D15: Clinical | E15: No | I15: =IF(D15="Non-Clinical",IF($E15="Yes",IF(H15>Assumptions!$D$18,(Assumptions!$D$18*Assumptions!$D$8),H15*Assumptions!$D$8),IF(H15>Assumptions!$D$18,(Assumptions!$D$18*Assumptions!$D$6)+(('Salary Build Sheet (Clinical)'!H15-Assumptions!$D$18)*Assumptions!$D$13),H15*Assumptions!$D$6)),IF($E15="Yes",IF(H15>Assumptions!$D$18,(Assumptions!$D$18*Assumptions!$D$8),H15*Assumptions!$D$8),IF(H15>Assumptions!$D$18,(Assumptions!$D$18*Assumptions!$D$7)+(('Salary Build Sheet (Clinical)'!H15-Assumptions!$D$18)*Assumptions!$D$14),H15*Assumptions!$D$7))) -> 0 | J15: =IF(E15="Non-Clinical",IF($E15="Yes",IF(H15>Assumptions!$D$18,(Assumptions!$D$18*0),H15*0),IF(H15>Assumptions!$D$18,(Assumptions!$D$18*(Assumptions!$D$9+Assumptions!$D$10))+(('Salary Build Sheet (Clinical)'!H15-Assumptions!$D$18)*0),H15*(Assumptions!$D$9+Assumptions!$D$10))),IF($E15="Yes",IF(H15>Assumptions!$D$18,(Assumptions!$D$18*0),H15*0),IF(H15>Assumptions!$D$18,(Assumptions!$D$18*(Assumptions!$D$9+Assumptions!$D$10))+(('Salary Build Sheet (Clinical)'!H15-Assumptions!$D$18)*0),H15*(Assumptions!$D$9+Assumptions!$D$10)))) -> 0 | K15: 0 | L15: 0 | M15: 0 | N15: 0 | O15: 0 | P15: 0 | Q15: 0 | R15: 0 | S15: 0 | W15: =IF(J15="Non-Clinical",IF($E15="Yes",IF(V15>Assumptions!$D$18,(Assumptions!$D$18*Assumptions!$D$8),V15*Assumptions!$D$8),IF(V15>Assumptions!$D$18,(Assumptions!$D$18*Assumptions!$D$6)+(('Salary Build Sheet (Clinical)'!V15-Assumptions!$D$18)*Assumptions!$D$13),V15*Assumptions!$D$6)),IF($E15="Yes",IF(V15>Assumptions!$D$18,(Assumptions!$D$18*Assumptions!$D$8),V15*Assumptions!$D$8),IF(V15>Assumptions!$D$18,(Assumptions!$D$18*Assumptions!$D$7)+(('Salary Build Sheet (Clinical)'!V15-Assumptions!$D$18)*Assumptions!$D$14),V15*Assumptions!$D$7))) -> 0 | X15: =IF(K15="Non-Clinical",IF($E15="Yes",IF(V15>Assumptions!$D$18,(Assumptions!$D$18*0),V15*0),IF(V15>Assumptions!$D$18,(Assumptions!$D$18*(Assumptions!$D$9+Assumptions!$D$10))+(('Salary Build Sheet (Clinical)'!V15-Assumptions!$D$18)*0),V15*(Assumptions!$D$9+Assumptions!$D$10))),IF($E15="Yes",IF(V15>Assumptions!$D$18,(Assumptions!$D$18*0),V15*0),IF(V15>Assumptions!$D$18,(Assumptions!$D$18*(Assumptions!$D$9+Assumptions!$D$10))+(('Salary Build Sheet (Clinical)'!V15-Assumptions!$D$18)*0),V15*(Assumptions!$D$9+Assumptions!$D$10)))) -> 0 | Y15: 0 | Z15: 0 | AA15: 0 | AB15: 0 | AC15: 0 | AD15: 0 | AE15: 0 | AF15: 0 | AG15: 0 | AK15: =IF(X15="Non-Clinical",IF($E15="Yes",IF(AJ15>Assumptions!$D$18,(Assumptions!$D$18*Assumptions!$D$8),AJ15*Assumptions!$D$8),IF(AJ15>Assumptions!$D$18,(Assumptions!$D$18*Assumptions!$D$6)+(('Salary Build Sheet (Clinical)'!AJ15-Assumptions!$D$18)*Assumptions!$D$13),AJ15*Assumptions!$D$6)),IF($E15="Yes",IF(AJ15>Assumptions!$D$18,(Assumptions!$D$18*Assumptions!$D$8),AJ15*Assumptions!$D$8),IF(AJ15>Assumptions!$D$18,(Assumptions!$D$18*Assumptions!$D$7)+(('Salary Build Sheet (Clinical)'!AJ15-Assumptions!$D$18)*Assumptions!$D$14),AJ15*Assumptions!$D$7))) -> 0 | AL15: =IF(Y15="Non-Clinical",IF($E15="Yes",IF(AJ15>Assumptions!$D$18,(Assumptions!$D$18*0),AJ15*0),IF(AJ15>Assumptions!$D$18,(Assumptions!$D$18*(Assumptions!$D$9+Assumptions!$D$10))+(('Salary Build Sheet (Clinical)'!AJ15-Assumptions!$D$18)*0),AJ15*(Assumptions!$D$9+Assumptions!$D$10))),IF($E15="Yes",IF(AJ15>Assumptions!$D$18,(Assumptions!$D$18*0),AJ15*0),IF(AJ15>Assumptions!$D$18,(Assumptions!$D$18*(Assumptions!$D$9+Assumptions!$D$10))+(('Salary Build Sheet (Clinical)'!AJ15-Assumptions!$D$18)*0),AJ15*(Assumptions!$D$9+Assumptions!$D$10)))) -> 0 | AM15: 0 | AN15: 0 | AO15: 0 | AP15: 0 | AQ15: 0 | AR15: 0 | AS15: 0 | AT15: 0 | AU15: 0 | AV15: 0 | AY15: =IF(G15>0,(G15/#REF!)*H15," ") ->  | AZ15: =IF(G15>0,(G15/#REF!)*W15," ") ->  | BA15: 0
D16: Clinical | E16: No | I16: =IF(D16="Non-Clinical",IF($E16="Yes",IF(H16>Assumptions!$D$18,(Assumptions!$D$18*Assumptions!$D$8),H16*Assumptions!$D$8),IF(H16>Assumptions!$D$18,(Assumptions!$D$18*Assumptions!$D$6)+(('Salary Build Sheet (Clinical)'!H16-Assumptions!$D$18)*Assumptions!$D$13),H16*Assumptions!$D$6)),IF($E16="Yes",IF(H16>Assumptions!$D$18,(Assumptions!$D$18*Assumptions!$D$8),H16*Assumptions!$D$8),IF(H16>Assumptions!$D$18,(Assumptions!$D$18*Assumptions!$D$7)+(('Salary Build Sheet (Clinical)'!H16-Assumptions!$D$18)*Assumptions!$D$14),H16*Assumptions!$D$7))) -> 0 | J16: =IF(E16="Non-Clinical",IF($E16="Yes",IF(H16>Assumptions!$D$18,(Assumptions!$D$18*0),H16*0),IF(H16>Assumptions!$D$18,(Assumptions!$D$18*(Assumptions!$D$9+Assumptions!$D$10))+(('Salary Build Sheet (Clinical)'!H16-Assumptions!$D$18)*0),H16*(Assumptions!$D$9+Assumptions!$D$10))),IF($E16="Yes",IF(H16>Assumptions!$D$18,(Assumptions!$D$18*0),H16*0),IF(H16>Assumptions!$D$18,(Assumptions!$D$18*(Assumptions!$D$9+Assumptions!$D$10))+(('Salary Build Sheet (Clinical)'!H16-Assumptions!$D$18)*0),H16*(Assumptions!$D$9+Assumptions!$D$10)))) -> 0 | K16: 0 | L16: 0 | M16: 0 | N16: 0 | O16: 0 | P16: 0 | Q16: 0 | R16: 0 | S16: 0 | W16: =IF(J16="Non-Clinical",IF($E16="Yes",IF(V16>Assumptions!$D$18,(Assumptions!$D$18*Assumptions!$D$8),V16*Assumptions!$D$8),IF(V16>Assumptions!$D$18,(Assumptions!$D$18*Assumptions!$D$6)+(('Salary Build Sheet (Clinical)'!V16-Assumptions!$D$18)*Assumptions!$D$13),V16*Assumptions!$D$6)),IF($E16="Yes",IF(V16>Assumptions!$D$18,(Assumptions!$D$18*Assumptions!$D$8),V16*Assumptions!$D$8),IF(V16>Assumptions!$D$18,(Assumptions!$D$18*Assumptions!$D$7)+(('Salary Build Sheet (Clinical)'!V16-Assumptions!$D$18)*Assumptions!$D$14),V16*Assumptions!$D$7))) -> 0 | X16: =IF(K16="Non-Clinical",IF($E16="Yes",IF(V16>Assumptions!$D$18,(Assumptions!$D$18*0),V16*0),IF(V16>Assumptions!$D$18,(Assumptions!$D$18*(Assumptions!$D$9+Assumptions!$D$10))+(('Salary Build Sheet (Clinical)'!V16-Assumptions!$D$18)*0),V16*(Assumptions!$D$9+Assumptions!$D$10))),IF($E16="Yes",IF(V16>Assumptions!$D$18,(Assumptions!$D$18*0),V16*0),IF(V16>Assumptions!$D$18,(Assumptions!$D$18*(Assumptions!$D$9+Assumptions!$D$10))+(('Salary Build Sheet (Clinical)'!V16-Assumptions!$D$18)*0),V16*(Assumptions!$D$9+Assumptions!$D$10)))) -> 0 | Y16: 0 | Z16: 0 | AA16: 0 | AB16: 0 | AC16: 0 | AD16: 0 | AE16: 0 | AF16: 0 | AG16: 0 | AK16: =IF(X16="Non-Clinical",IF($E16="Yes",IF(AJ16>Assumptions!$D$18,(Assumptions!$D$18*Assumptions!$D$8),AJ16*Assumptions!$D$8),IF(AJ16>Assumptions!$D$18,(Assumptions!$D$18*Assumptions!$D$6)+(('Salary Build Sheet (Clinical)'!AJ16-Assumptions!$D$18)*Assumptions!$D$13),AJ16*Assumptions!$D$6)),IF($E16="Yes",IF(AJ16>Assumptions!$D$18,(Assumptions!$D$18*Assumptions!$D$8),AJ16*Assumptions!$D$8),IF(AJ16>Assumptions!$D$18,(Assumptions!$D$18*Assumptions!$D$7)+(('Salary Build Sheet (Clinical)'!AJ16-Assumptions!$D$18)*Assumptions!$D$14),AJ16*Assumptions!$D$7))) -> 0 | AL16: =IF(Y16="Non-Clinical",IF($E16="Yes",IF(AJ16>Assumptions!$D$18,(Assumptions!$D$18*0),AJ16*0),IF(AJ16>Assumptions!$D$18,(Assumptions!$D$18*(Assumptions!$D$9+Assumptions!$D$10))+(('Salary Build Sheet (Clinical)'!AJ16-Assumptions!$D$18)*0),AJ16*(Assumptions!$D$9+Assumptions!$D$10))),IF($E16="Yes",IF(AJ16>Assumptions!$D$18,(Assumptions!$D$18*0),AJ16*0),IF(AJ16>Assumptions!$D$18,(Assumptions!$D$18*(Assumptions!$D$9+Assumptions!$D$10))+(('Salary Build Sheet (Clinical)'!AJ16-Assumptions!$D$18)*0),AJ16*(Assumptions!$D$9+Assumptions!$D$10)))) -> 0 | AM16: 0 | AN16: 0 | AO16: 0 | AP16: 0 | AQ16: 0 | AR16: 0 | AS16: 0 | AT16: 0 | AU16: 0 | AV16: 0 | AY16: =IF(G16>0,(G16/#REF!)*H16," ") ->  | AZ16: =IF(G16>0,(G16/#REF!)*W16," ") ->  | BA16: 0
B17: Total Faculty Staffing | G17: =SUM(G10:G16) -> 0 | H17: 0 | I17: 0 | J17: =SUM(J10:J16) -> 0 | K17: =SUM(K10:K16) -> 0 | L17: =SUM(L10:L16) -> 0 | M17: =SUM(M10:M16) -> 0 | N17: 0 | O17: 0 | P17: 0 | Q17: 0 | R17: 0 | S17: 0 | T17: 0 | V17: 0 | W17: =SUM(W10:W16) -> 0 | X17: =SUM(X10:X16) -> 0 | Y17: =SUM(Y10:Y16) -> 0 | Z17: =SUM(Z10:Z16) -> 0 | AA17: =SUM(AA10:AA16) -> 0 | AB17: =SUM(AB10:AB16) -> 0 | AC17: =SUM(AC10:AC16) -> 0 | AD17: =SUM(AD10:AD16) -> 0 | AE17: =SUM(AE10:AE16) -> 0 | AF17: =SUM(AF10:AF16) -> 0 | AG17: =SUM(AG10:AG16) -> 0 | AH17: =SUM(AH10:AH16) -> 0 | AJ17: =SUM(AJ10:AJ16) -> 0 | AK17: =SUM(AK10:AK16) -> 0 | AL17: =SUM(AL10:AL16) -> 0 | AM17: =SUM(AM10:AM16) -> 0 | AN17: =SUM(AN10:AN16) -> 0 | AO17: =SUM(AO10:AO16) -> 0 | AP17: =SUM(AP10:AP16) -> 0 | AQ17: =SUM(AQ10:AQ16) -> 0 | AR17: =SUM(AR10:AR16) -> 0 | AS17: =SUM(AS10:AS16) -> 0 | AT17: =SUM(AT10:AT16) -> 0 | AU17: =SUM(AU10:AU16) -> 0 | AV17: =SUM(AV10:AV16) -> 0 | AY17: =SUM(AY10:AY16) -> 0 | AZ17: =SUM(AZ10:AZ16) -> 0 | BA17: =SUM(BA10:BA16) -> 0
B18: Physician Incentive
C19: One-Time Incentive | I19: =H19*Assumptions!$D$13 -> 0 | J19: 0 | K19: =I19+H19+J19 -> 0 | L19: =H19 -> 0 | M19: =I19 -> 0 | N19: =J19 -> 0 | O19: =SUM(L19:N19) -> 0 | W19: =V19*Assumptions!$D$13 -> 0 | X19: 0 | Y19: =W19+V19+X19 -> 0 | Z19: =V19 -> 0 | AA19: =W19 -> 0 | AB19: =X19 -> 0 | AC19: =SUM(Z19:AB19) -> 0 | AK19: =AJ19*Assumptions!$D$13 -> 0 | AL19: 0 | AM19: =AK19+AJ19+AL19 -> 0 | AN19: =AJ19 -> 0 | AO19: =AK19 -> 0 | AP19: =AL19 -> 0 | AQ19: =SUM(AN19:AP19) -> 0 | AV19: =AM19+Y19+K19 -> 0
C20: Ongoing Incentive | I20: =H20*Assumptions!$D$13 -> 0 | J20: 0 | K20: 0 | L20: =H20 -> 0 | M20: =I20 -> 0 | N20: =J20 -> 0 | O20: 0 | W20: =V20*Assumptions!$D$13 -> 0 | X20: 0 | Y20: 0 | Z20: =V20 -> 0 | AA20: =W20 -> 0 | AB20: =X20 -> 0 | AC20: 0 | AK20: =AJ20*Assumptions!$D$13 -> 0 | AL20: 0 | AM20: 0 | AN20: =AJ20 -> 0 | AO20: =AK20 -> 0 | AP20: =AL20 -> 0 | AQ20: 0 | AV20: 0
C21: Moving/Relocation Bonus | I21: =H21*Assumptions!$D$13 -> 0 | J21: 0 | K21: 0 | L21: 0 | M21: 0 | N21: 0 | O21: 0 | W21: =V21*Assumptions!$D$13 -> 0 | X21: 0 | Y21: 0 | Z21: 0 | AA21: 0 | AB21: 0 | AC21: 0 | AK21: =AJ21*Assumptions!$D$13 -> 0 | AL21: 0 | AM21: 0 | AN21: 0 | AO21: 0 | AP21: 0 | AQ21: 0 | AV21: 0
C22: YNHH Metric-Based | I22: =H22*Assumptions!$D$13 -> 0 | J22: 0 | K22: 0 | L22: 0 | M22: 0 | N22: 0 | O22: 0 | W22: =V22*Assumptions!$D$13 -> 0 | X22: 0 | Y22: 0 | Z22: 0 | AA22: 0 | AB22: 0 | AC22: 0 | AK22: =AJ22*Assumptions!$D$13 -> 0 | AL22: 0 | AM22: 0 | AN22: 0 | AO22: 0 | AP22: 0 | AQ22: 0 | AV22: 0
C23: YNHH Not Metric-Based | I23: =H23*Assumptions!$D$13 -> 0 | J23: 0 | K23: 0 | L23: 0 | M23: 0 | N23: 0 | O23: 0 | W23: =V23*Assumptions!$D$13 -> 0 | X23: 0 | Y23: 0 | Z23: 0 | AA23: 0 | AB23: 0 | AC23: 0 | AK23: =AJ23*Assumptions!$D$13 -> 0 | AL23: 0 | AM23: 0 | AN23: 0 | AO23: 0 | AP23: 0 | AQ23: 0 | AV23: 0
B24: Physician Incentives Subtotal | G24: =SUM(G18:G23) -> 0 | H24: =SUM(H18:H23) -> 0 | I24: =SUM(I18:I23) -> 0 | J24: =SUM(J18:J23) -> 0 | K24: =SUM(K18:K23) -> 0 | L24: =SUM(L18:L23) -> 0 | M24: 0 | N24: 0 | O24: =SUM(O18:O23) -> 0 | P24: =SUM(P18:P23) -> 0 | Q24: =SUM(Q18:Q23) -> 0 | R24: =SUM(R18:R23) -> 0 | S24: =SUM(S18:S23) -> 0 | T24: =SUM(T18:T23) -> 0 | V24: =SUM(V18:V23) -> 0 | W24: 0 | X24: =SUM(X18:X23) -> 0 | Y24: =SUM(Y18:Y23) -> 0 | Z24: =SUM(Z18:Z23) -> 0 | AA24: =SUM(AA18:AA23) -> 0 | AB24: =SUM(AB18:AB23) -> 0 | AC24: =SUM(AC18:AC23) -> 0 | AD24: =SUM(AD18:AD23) -> 0 | AE24: =SUM(AE18:AE23) -> 0 | AF24: =SUM(AF18:AF23) -> 0 | AG24: =SUM(AG18:AG23) -> 0 | AH24: 0 | AJ24: 0 | AK24: =SUM(AK18:AK23) -> 0 | AL24: =SUM(AL18:AL23) -> 0 | AM24: =SUM(AM18:AM23) -> 0 | AN24: =SUM(AN18:AN23) -> 0 | AO24: =SUM(AO18:AO23) -> 0 | AP24: =SUM(AP18:AP23) -> 0 | AQ24: =SUM(AQ18:AQ23) -> 0 | AR24: =SUM(AR18:AR23) -> 0 | AS24: =SUM(AS18:AS23) -> 0 | AT24: =SUM(AT18:AT23) -> 0 | AU24: =SUM(AU18:AU23) -> 0 | AV24: 0
B25: Total Faculty Salaries | G25: =G17 -> 0 | H25: =H24+H17 -> 0 | I25: =I24+I17 -> 0 | J25: =J24+J17 -> 0 | K25: 0 | L25: =L24+L17 -> 0 | M25: 0 | N25: 0 | O25: =O24+O17 -> 0 | P25: =P24+P17 -> 0 | Q25: 0 | R25: 0 | S25: 0 | T25: =T17 -> 0 | V25: =V24+V17 -> 0 | W25: 0 | X25: 0 | Y25: 0 | Z25: 0 | AA25: 0 | AB25: 0 | AC25: =AC24+AC17 -> 0 | AD25: =AD24+AD17 -> 0 | AE25: 0 | AF25: 0 | AG25: 0 | AH25: =AH17 -> 0 | AJ25: =AJ24+AJ17 -> 0 | AK25: 0 | AL25: 0 | AM25: 0 | AN25: 0 | AO25: 0 | AP25: 0 | AQ25: =AQ24+AQ17 -> 0 | AR25: =AR24+AR17 -> 0 | AS25: 0 | AT25: 0 | AU25: 0 | AV25: =AV24+AV17 -> 0
B26: M&P Staffing
I27: =IF($E27="Yes",H27*Assumptions!$D$8,H27*Assumptions!$D$6) -> 0 | J27: =IF($E27="Yes",H27*0,H27*(Assumptions!$D$9)) -> 0 | K27: =I27+H27+J27 -> 0 | L27: =H27*F27 -> 0 | M27: =I27*F27 -> 0 | N27: =J27*F27 -> 0 | O27: =SUM(L27:N27) -> 0 | P27: =H27*G27 -> 0 | Q27: =I27*G27 -> 0 | R27: =J27*G27 -> 0 | S27: =SUM(P27:R27) -> 0 | W27: =IF($E27="Yes",V27*Assumptions!$D$8,V27*Assumptions!$D$6) -> 0 | X27: =IF($E27="Yes",V27*0,V27*(Assumptions!$D$9)) -> 0 | Y27: =W27+V27+X27 -> 0 | Z27: =V27*T27 -> 0 | AA27: =W27*T27 -> 0 | AB27: =X27*T27 -> 0 | AC27: =SUM(Z27:AB27) -> 0 | AD27: =V27*U27 -> 0 | AE27: =W27*U27 -> 0 | AF27: =X27*U27 -> 0 | AG27: =SUM(AD27:AF27) -> 0 | AK27: =IF($E27="Yes",AJ27*Assumptions!$D$8,AJ27*Assumptions!$D$6) -> 0 | AL27: =IF($E27="Yes",AJ27*0,AJ27*(Assumptions!$D$9)) -> 0 | AM27: =AK27+AJ27+AL27 -> 0 | AN27: =AJ27*AH27 -> 0 | AO27: =AK27*AH27 -> 0 | AP27: =AL27*AH27 -> 0 | AQ27: =SUM(AN27:AP27) -> 0 | AR27: =AJ27*AI27 -> 0 | AS27: =AK27*AI27 -> 0 | AT27: =AL27*AI27 -> 0 | AU27: =SUM(AR27:AT27) -> 0 | AV27: =AM27+Y27+K27 -> 0
I28: =IF($E28="Yes",H28*Assumptions!$D$8,H28*Assumptions!$D$6) -> 0 | J28: =IF($E28="Yes",H28*0,H28*(Assumptions!$D$9)) -> 0 | K28: 0 | L28: =H28*F28 -> 0 | M28: =I28*F28 -> 0 | N28: =J28*F28 -> 0 | O28: =SUM(L28:N28) -> 0 | P28: =H28*G28 -> 0 | Q28: =I28*G28 -> 0 | R28: =J28*G28 -> 0 | S28: =SUM(P28:R28) -> 0 | W28: =IF($E28="Yes",V28*Assumptions!$D$8,V28*Assumptions!$D$6) -> 0 | X28: =IF($E28="Yes",V28*0,V28*(Assumptions!$D$9)) -> 0 | Y28: 0 | Z28: =V28*T28 -> 0 | AA28: =W28*T28 -> 0 | AB28: =X28*T28 -> 0 | AC28: =SUM(Z28:AB28) -> 0 | AD28: =V28*U28 -> 0 | AE28: =W28*U28 -> 0 | AF28: =X28*U28 -> 0 | AG28: =SUM(AD28:AF28) -> 0 | AK28: =IF($E28="Yes",AJ28*Assumptions!$D$8,AJ28*Assumptions!$D$6) -> 0 | AL28: =IF($E28="Yes",AJ28*0,AJ28*(Assumptions!$D$9)) -> 0 | AM28: 0 | AN28: 0 | AO28: 0 | AP28: 0 | AQ28: 0 | AR28: 0 | AS28: 0 | AT28: 0 | AU28: 0 | AV28: 0
I29: =IF($E29="Yes",H29*Assumptions!$D$8,H29*Assumptions!$D$6) -> 0 | J29: =IF($E29="Yes",H29*0,H29*(Assumptions!$D$9)) -> 0 | K29: 0 | L29: 0 | M29: 0 | N29: 0 | O29: 0 | P29: 0 | Q29: 0 | R29: 0 | S29: 0 | W29: =IF($E29="Yes",V29*Assumptions!$D$8,V29*Assumptions!$D$6) -> 0 | X29: =IF($E29="Yes",V29*0,V29*(Assumptions!$D$9)) -> 0 | Y29: 0 | Z29: 0 | AA29: 0 | AB29: 0 | AC29: 0 | AD29: 0 | AE29: 0 | AF29: 0 | AG29: 0 | AK29: =IF($E29="Yes",AJ29*Assumptions!$D$8,AJ29*Assumptions!$D$6) -> 0 | AL29: =IF($E29="Yes",AJ29*0,AJ29*(Assumptions!$D$9)) -> 0 | AM29: 0 | AN29: 0 | AO29: 0 | AP29: 0 | AQ29: 0 | AR29: 0 | AS29: 0 | AT29: 0 | AU29: 0 | AV29: 0
I30: =IF($E30="Yes",H30*Assumptions!$D$8,H30*Assumptions!$D$6) -> 0 | J30: =IF($E30="Yes",H30*0,H30*(Assumptions!$D$9)) -> 0 | K30: 0 | L30: 0 | M30: 0 | N30: 0 | O30: 0 | P30: 0 | Q30: 0 | R30: 0 | S30: 0 | W30: =IF($E30="Yes",V30*Assumptions!$D$8,V30*Assumptions!$D$6) -> 0 | X30: =IF($E30="Yes",V30*0,V30*(Assumptions!$D$9)) -> 0 | Y30: 0 | Z30: 0 | AA30: 0 | AB30: 0 | AC30: 0 | AD30: 0 | AE30: 0 | AF30: 0 | AG30: 0 | AK30: =IF($E30="Yes",AJ30*Assumptions!$D$8,AJ30*Assumptions!$D$6) -> 0 | AL30: =IF($E30="Yes",AJ30*0,AJ30*(Assumptions!$D$9)) -> 0 | AM30: 0 | AN30: 0 | AO30: 0 | AP30: 0 | AQ30: 0 | AR30: 0 | AS30: 0 | AT30: 0 | AU30: 0 | AV30: 0
I31: =IF($E31="Yes",H31*Assumptions!$D$8,H31*Assumptions!$D$6) -> 0 | J31: =IF($E31="Yes",H31*0,H31*(Assumptions!$D$9)) -> 0 | K31: 0 | L31: 0 | M31: 0 | N31: 0 | O31: 0 | P31: 0 | Q31: 0 | R31: 0 | S31: 0 | W31: =IF($E31="Yes",V31*Assumptions!$D$8,V31*Assumptions!$D$6) -> 0 | X31: =IF($E31="Yes",V31*0,V31*(Assumptions!$D$9)) -> 0 | Y31: 0 | Z31: 0 | AA31: 0 | AB31: 0 | AC31: 0 | AD31: 0 | AE31: 0 | AF31: 0 | AG31: 0 | AK31: =IF($E31="Yes",AJ31*Assumptions!$D$8,AJ31*Assumptions!$D$6) -> 0 | AL31: =IF($E31="Yes",AJ31*0,AJ31*(Assumptions!$D$9)) -> 0 | AM31: 0 | AN31: 0 | AO31: 0 | AP31: 0 | AQ31: 0 | AR31: 0 | AS31: 0 | AT31: 0 | AU31: 0 | AV31: 0
I32: =IF($E32="Yes",H32*Assumptions!$D$8,H32*Assumptions!$D$6) -> 0 | J32: =IF($E32="Yes",H32*0,H32*(Assumptions!$D$9)) -> 0 | K32: 0 | L32: 0 | M32: 0 | N32: 0 | O32: 0 | P32: 0 | Q32: 0 | R32: 0 | S32: 0 | W32: =IF($E32="Yes",V32*Assumptions!$D$8,V32*Assumptions!$D$6) -> 0 | X32: =IF($E32="Yes",V32*0,V32*(Assumptions!$D$9)) -> 0 | Y32: 0 | Z32: 0 | AA32: 0 | AB32: 0 | AC32: 0 | AD32: 0 | AE32: 0 | AF32: 0 | AG32: 0 | AK32: =IF($E32="Yes",AJ32*Assumptions!$D$8,AJ32*Assumptions!$D$6) -> 0 | AL32: =IF($E32="Yes",AJ32*0,AJ32*(Assumptions!$D$9)) -> 0 | AM32: 0 | AN32: 0 | AO32: 0 | AP32: 0 | AQ32: 0 | AR32: 0 | AS32: 0 | AT32: 0 | AU32: 0 | AV32: 0
B33: Total M&P Staffing | F33: =SUM(F27:F32) -> 0 | G33: 0 | H33: 0 | I33: 0 | J33: 0 | K33: 0 | L33: 0 | M33: 0 | N33: 0 | O33: 0 | P33: 0 | Q33: 0 | R33: 0 | S33: 0 | T33: 0 | V33: =SUM(V27:V32) -> 0 | W33: 0 | X33: 0 | Y33: 0 | Z33: 0 | AA33: 0 | AB33: 0 | AC33: 0 | AD33: 0 | AE33: 0 | AF33: 0 | AG33: 0 | AH33: 0 | AJ33: =SUM(AJ27:AJ32) -> 0 | AK33: 0 | AL33: 0 | AM33: 0 | AN33: 0 | AO33: 0 | AP33: 0 | AQ33: 0 | AR33: 0 | AS33: 0 | AT33: 0 | AU33: 0 | AV33: 0
B34: C&T Staffing
I35: =IF($E35="Yes",H35*Assumptions!$D$12,H35*Assumptions!$D$11) -> 0 | J35: 0 | K35: =I35+H35+J35 -> 0 | L35: =H35*F35 -> 0 | M35: =I35*F35 -> 0 | N35: =J35*F35 -> 0 | O35: =SUM(L35:N35) -> 0 | P35: =H35*G35 -> 0 | Q35: =I35*G35 -> 0 | R35: =J35*G35 -> 0 | S35: =SUM(P35:R35) -> 0 | W35: =IF($E35="Yes",V35*Assumptions!$D$12,V35*Assumptions!$D$11) -> 0 | X35: 0 | Y35: =W35+V35+X35 -> 0 | Z35: =V35*T35 -> 0 | AA35: =W35*T35 -> 0 | AB35: =X35*T35 -> 0 | AC35: =SUM(Z35:AB35) -> 0 | AD35: =V35*U35 -> 0 | AE35: =W35*U35 -> 0 | AF35: =X35*U35 -> 0 | AG35: =SUM(AD35:AF35) -> 0 | AK35: =IF($E35="Yes",AJ35*Assumptions!$D$12,AJ35*Assumptions!$D$11) -> 0 | AL35: 0 | AM35: =AK35+AJ35+AL35 -> 0 | AN35: =AJ35*AH35 -> 0 | AO35: =AK35*AH35 -> 0 | AP35: =AL35*AH35 -> 0 | AQ35: =SUM(AN35:AP35) -> 0 | AR35: =AJ35*AI35 -> 0 | AS35: =AK35*AI35 -> 0 | AT35: =AL35*AI35 -> 0 | AU35: =SUM(AR35:AT35) -> 0 | AV35: =AM35+Y35+K35 -> 0
I36: =IF($E36="Yes",H36*Assumptions!$D$12,H36*Assumptions!$D$11) -> 0 | J36: 0 | K36: 0 | L36: 0 | M36: 0 | N36: 0 | O36: 0 | P36: =H36*G36 -> 0 | Q36: 0 | R36: 0 | S36: 0 | W36: =IF($E36="Yes",V36*Assumptions!$D$12,V36*Assumptions!$D$11) -> 0 | X36: 0 | Y36: 0 | Z36: 0 | AA36: 0 | AB36: 0 | AC36: 0 | AD36: =V36*U36 -> 0 | AE36: 0 | AF36: 0 | AG36: 0 | AK36: =IF($E36="Yes",AJ36*Assumptions!$D$12,AJ36*Assumptions!$D$11) -> 0 | AL36: 0 | AM36: 0 | AN36: 0 | AO36: 0 | AP36: 0 | AQ36: 0 | AR36: 0 | AS36: 0 | AT36: 0 | AU36: 0 | AV36: 0
I37: =IF($E37="Yes",H37*Assumptions!$D$12,H37*Assumptions!$D$11) -> 0 | J37: 0 | K37: 0 | L37: 0 | M37: 0 | N37: 0 | O37: 0 | P37: 0 | Q37: 0 | R37: 0 | S37: 0 | W37: =IF($E37="Yes",V37*Assumptions!$D$12,V37*Assumptions!$D$11) -> 0 | X37: 0 | Y37: 0 | Z37: 0 | AA37: 0 | AB37: 0 | AC37: 0 | AD37: 0 | AE37: 0 | AF37: 0 | AG37: 0 | AK37: =IF($E37="Yes",AJ37*Assumptions!$D$12,AJ37*Assumptions!$D$11) -> 0 | AL37: 0 | AM37: 0 | AN37: 0 | AO37: 0 | AP37: 0 | AQ37: 0 | AR37: 0 | AS37: 0 | AT37: 0 | AU37: 0 | AV37: 0
I38: =IF($E38="Yes",H38*Assumptions!$D$12,H38*Assumptions!$D$11) -> 0 | J38: 0 | K38: 0 | L38: 0 | M38: 0 | N38: 0 | O38: 0 | P38: 0 | Q38: 0 | R38: 0 | S38: 0 | W38: =IF($E38="Yes",V38*Assumptions!$D$12,V38*Assumptions!$D$11) -> 0 | X38: 0 | Y38: 0 | Z38: 0 | AA38: 0 | AB38: 0 | AC38: 0 | AD38: 0 | AE38: 0 | AF38: 0 | AG38: 0 | AK38: =IF($E38="Yes",AJ38*Assumptions!$D$12,AJ38*Assumptions!$D$11) -> 0 | AL38: 0 | AM38: 0 | AN38: 0 | AO38: 0 | AP38: 0 | AQ38: 0 | AR38: 0 | AS38: 0 | AT38: 0 | AU38: 0 | AV38: 0
I39: =IF($E39="Yes",H39*Assumptions!$D$12,H39*Assumptions!$D$11) -> 0 | J39: 0 | K39: 0 | L39: 0 | M39: 0 | N39: 0 | O39: 0 | P39: 0 | Q39: 0 | R39: 0 | S39: 0 | W39: =IF($E39="Yes",V39*Assumptions!$D$12,V39*Assumptions!$D$11) -> 0 | X39: 0 | Y39: 0 | Z39: 0 | AA39: 0 | AB39: 0 | AC39: 0 | AD39: 0 | AE39: 0 | AF39: 0 | AG39: 0 | AK39: =IF($E39="Yes",AJ39*Assumptions!$D$12,AJ39*Assumptions!$D$11) -> 0 | AL39: 0 | AM39: 0 | AN39: 0 | AO39: 0 | AP39: 0 | AQ39: 0 | AR39: 0 | AS39: 0 | AT39: 0 | AU39: 0 | AV39: 0
B40: Total C&T Staffing | F40: =SUM(F35:F39) -> 0 | G40: =SUM(G35:G39) -> 0 | H40: 0 | I40: 0 | J40: 0 | K40: 0 | L40: 0 | M40: 0 | N40: 0 | O40: 0 | P40: 0 | Q40: 0 | R40: 0 | S40: 0 | T40: 0 | U40: 0 | V40: 0 | W40: 0 | X40: 0 | Y40: 0 | Z40: 0 | AA40: 0 | AB40: 0 | AC40: 0 | AD40: 0 | AE40: 0 | AF40: 0 | AG40: 0 | AH40: 0 | AI40: 0 | AJ40: 0 | AK40: 0 | AL40: 0 | AM40: 0 | AN40: 0 | AO40: 0 | AP40: 0 | AQ40: 0 | AR40: 0 | AS40: 0 | AT40: 0 | AU40: 0 | AV40: 0
B41: YM CARE Staff (C&T)
I42: =IF($E42="Yes",H42*Assumptions!$D$12,H42*Assumptions!$D$11) -> 0 | J42: 0 | K42: 0 | L42: 0 | M42: 0 | N42: 0 | O42: 0 | P42: 0 | Q42: 0 | R42: 0 | S42: 0 | W42: =IF($E42="Yes",V42*Assumptions!$D$12,V42*Assumptions!$D$11) -> 0 | X42: 0 | Y42: 0 | Z42: 0 | AA42: 0 | AB42: 0 | AC42: 0 | AD42: 0 | AE42: 0 | AF42: 0 | AG42: 0 | AK42: =IF($E42="Yes",AJ42*Assumptions!$D$12,AJ42*Assumptions!$D$11) -> 0 | AL42: 0 | AM42: 0 | AN42: 0 | AO42: 0 | AP42: 0 | AQ42: 0 | AR42: 0 | AS42: 0 | AT42: 0 | AU42: 0 | AV42: 0
I43: =IF($E43="Yes",H43*Assumptions!$D$12,H43*Assumptions!$D$11) -> 0 | J43: 0 | K43: 0 | L43: 0 | M43: 0 | N43: 0 | O43: 0 | P43: 0 | Q43: 0 | R43: 0 | S43: 0 | W43: =IF($E43="Yes",V43*Assumptions!$D$12,V43*Assumptions!$D$11) -> 0 | X43: 0 | Y43: 0 | Z43: 0 | AA43: 0 | AB43: 0 | AC43: 0 | AD43: 0 | AE43: 0 | AF43: 0 | AG43: 0 | AK43: =IF($E43="Yes",AJ43*Assumptions!$D$12,AJ43*Assumptions!$D$11) -> 0 | AL43: 0 | AM43: 0 | AN43: 0 | AO43: 0 | AP43: 0 | AQ43: 0 | AR43: 0 | AS43: 0 | AT43: 0 | AU43: 0 | AV43: 0
I44: =IF($E44="Yes",H44*Assumptions!$D$12,H44*Assumptions!$D$11) -> 0 | J44: 0 | K44: 0 | L44: 0 | M44: 0 | N44: 0 | O44: 0 | P44: 0 | Q44: 0 | R44: 0 | S44: 0 | W44: =IF($E44="Yes",V44*Assumptions!$D$12,V44*Assumptions!$D$11) -> 0 | X44: 0 | Y44: 0 | Z44: 0 | AA44: 0 | AB44: 0 | AC44: 0 | AD44: 0 | AE44: 0 | AF44: 0 | AG44: 0 | AK44: =IF($E44="Yes",AJ44*Assumptions!$D$12,AJ44*Assumptions!$D$11) -> 0 | AL44: 0 | AM44: 0 | AN44: 0 | AO44: 0 | AP44: 0 | AQ44: 0 | AR44: 0 | AS44: 0 | AT44: 0 | AU44: 0 | AV44: 0
B45: Total YM CARE Staffing | F45: =SUM(F42:F44) -> 0 | G45: =SUM(G42:G44) -> 0 | H45: 0 | I45: 0 | J45: 0 | K45: 0 | L45: 0 | M45: 0 | N45: 0 | O45: 0 | P45: 0 | Q45: 0 | R45: 0 | S45: 0 | T45: 0 | U45: 0 | V45: 0 | W45: 0 | X45: 0 | Y45: 0 | Z45: 0 | AA45: 0 | AB45: 0 | AC45: 0 | AD45: 0 | AE45: 0 | AF45: 0 | AG45: 0 | AH45: 0 | AI45: 0 | AJ45: 0 | AK45: 0 | AL45: 0 | AM45: 0 | AN45: 0 | AO45: 0 | AP45: 0 | AQ45: 0 | AR45: 0 | AS45: 0 | AT45: 0 | AU45: 0 | AV45: 0
B46: Overtime (if applicable) | E46: No | I46: =IF($E46="Yes",H46*Assumptions!$D$12,H46*Assumptions!$D$11) -> 0 | J46: 0 | K46: =I46+H46+J46 -> 0 | L46: =H46 -> 0 | M46: =I46 -> 0 | N46: 0 | O46: 0 | W46: =IF($E46="Yes",V46*Assumptions!$D$12,V46*Assumptions!$D$11) -> 0 | X46: 0 | Y46: =W46+V46+X46 -> 0 | Z46: =V46 -> 0 | AA46: =W46 -> 0 | AB46: 0 | AC46: =SUM(Z46:AB46) -> 0 | AK46: =IF($E46="Yes",AJ46*Assumptions!$D$12,AJ46*Assumptions!$D$11) -> 0 | AL46: 0 | AM46: =AK46+AJ46+AL46 -> 0 | AN46: =AJ46 -> 0 | AO46: =AK46 -> 0 | AP46: 0 | AQ46: =SUM(AN46:AP46) -> 0 | AV46: =SUM(H46:W46) -> 0
B47: Total Support Staff Costs | F47: =F45+F33+F40 -> 0 | G47: =G45+G33+G40 -> 0 | H47: =H45+H33+H40 -> 0 | I47: 0 | J47: =J45+J33+J40 -> 0 | K47: 0 | L47: 0 | M47: 0 | N47: 0 | O47: 0 | P47: 0 | Q47: 0 | R47: 0 | S47: 0 | T47: 0 | U47: =U45+U33+U40 -> 0 | V47: 0 | W47: 0 | X47: 0 | Y47: 0 | Z47: 0 | AA47: 0 | AB47: 0 | AC47: 0 | AD47: 0 | AE47: 0 | AF47: 0 | AG47: 0 | AH47: =AH45+AH33+AH40 -> 0 | AI47: =AI45+AI33+AI40 -> 0 | AJ47: 0 | AK47: 0 | AL47: 0 | AM47: 0 | AN47: 0 | AO47: 0 | AP47: 0 | AQ47: 0 | AR47: 0 | AS47: 0 | AT47: 0 | AU47: 0 | AV47: 0
B48: Grand Total Staffing | F48: =F47+F25 -> 0 | G48: =G47+G25 -> 0 | H48: =H47+H25 -> 0 | I48: =I47+I25 -> 0 | J48: =J47+J25 -> 0 | K48: =K47+K25 -> 0 | L48: 0 | M48: 0 | N48: 0 | O48: =O47+O25 -> 0 | P48: 0 | Q48: 0 | R48: 0 | S48: =S47+S25 -> 0 | T48: 0 | U48: =U47+U25 -> 0 | V48: 0 | W48: =W47+W25 -> 0 | X48: 0 | Y48: 0 | Z48: 0 | AA48: 0 | AB48: 0 | AC48: =AC47+AC25 -> 0 | AD48: =AD47+AD25 -> 0 | AE48: 0 | AF48: 0 | AG48: =AG47+AG25 -> 0 | AH48: =AH47+AH25 -> 0 | AI48: =AI47+AI25 -> 0 | AJ48: =AJ47+AJ25 -> 0 | AK48: =AK47+AK25 -> 0 | AL48: 0 | AM48: 0 | AN48: 0 | AO48: 0 | AP48: 0 | AQ48: =AQ47+AQ25 -> 0 | AR48: =AR47+AR25 -> 0 | AS48: 0 | AT48: 0 | AU48: =AU47+AU25 -> 0 | AV48: =AV47+AV25 -> 0

Sheet Non-Salary Build (Clinical)
B5: Non-Salary Build Plan
C7: Year One | D7: Year Two | E7: Year Three | F7: Cumulative | H7: Non-Salary
B8: Type of Position/Name | C8: Total | D8: Total | E8: Total | F8: Costs | H8: Notes
B9: Space/Sessions
B10: Space | F10: =SUM(C10:E10) -> 0 | I10: =IF(#REF!>0,(#REF!/#REF!)*#REF!," ") ->  | J10: =IF(#REF!>0,(#REF!/#REF!)*#REF!," ") -> 
B11: I&A | F11: =SUM(C11:E11) -> 0 | I11: =IF(#REF!>0,(#REF!/#REF!)*#REF!," ") ->  | J11: =IF(#REF!>0,(#REF!/#REF!)*#REF!," ") -> 
B12: Insert as necessary | F12: 0 | I12: =IF(#REF!>0,(#REF!/#REF!)*#REF!," ") ->  | J12: =IF(#REF!>0,(#REF!/#REF!)*#REF!," ") -> 
F13: 0 | I13: =IF(#REF!>0,(#REF!/#REF!)*#REF!," ") ->  | J13: =IF(#REF!>0,(#REF!/#REF!)*#REF!," ") -> 
F14: 0 | I14: =IF(#REF!>0,(#REF!/#REF!)*#REF!," ") ->  | J14: =IF(#REF!>0,(#REF!/#REF!)*#REF!," ") -> 
F15: 0 | I15: =IF(#REF!>0,(#REF!/#REF!)*#REF!," ") ->  | J15: =IF(#REF!>0,(#REF!/#REF!)*#REF!," ") -> 
B16: Total Space/Sessions | C16: =SUM(C10:C15) -> 0 | D16: =SUM(D10:D15) -> 0 | E16: =SUM(E10:E15) -> 0 | F16: =SUM(F10:F15) -> 0 | I16: =SUM(I10:I15) ->  | J16: =SUM(J10:J15) -> 
B17: Malpractice | F17: 0
B18: Insert as necessary | F18: 0
F19: 0
F20: 0
B21: Malpractice Total | C21: =SUM(C17:C20) -> 0 | D21: =SUM(D17:D20) -> 0 | E21: =SUM(E17:E20) -> 0 | F21: =E21+D21+C21 -> 0
B22: Medical/Surgical Supplies
B23: Insert as necessary | F23: =SUM(C23:E23) -> 0
F24: 0
F25: 0
B26: Medical/Surgical Supplies Total | C26: =SUM(C23:C25) -> 0 | D26: =SUM(D23:D25) -> 0 | E26: =SUM(E23:E25) -> 0 | F26: =SUM(F23:F25) -> 0
B27: Other Applicable Costs
B28: ITS | F28: =E28+D28+C28 -> 0
B29: Telcom | F29: 0
B30: Computers | F30: 0
B31: Office/General Supplies | F31: 0
B32: Travel | F32: 0
B33: Uniforms | F33: 0
B34: Insert as necessary | F34: 0
F35: 0
F36: 0
F37: 0
B38: Other Applicable Costs Total | C38: =SUM(C28:C37) -> 0 | D38: =SUM(D28:D37) -> 0 | E38: =SUM(E28:E37) -> 0 | F38: =SUM(F28:F37) -> 0
B39: Grand Total Non-Salary Costs | C39: =C38+C26+C21+C16 -> 0 | D39: =D38+D26+D21+D16 -> 0 | E39: =E38+E26+E21+E16 -> 0 | F39: =F38+F26+F21+F16 -> 0
B40: 1) Please adjust for FTE.

Sheet Research Plan
B1: Research Mission Business Plan
C3: Year 1 | K3: Year 2 | S3: Year 3
C4: Grants & Contracts | D4: Gifts/ Endowment | E4: Dept-Funded (YD) | F4: Dean-Funded (APS) | G4: VA | H4: Other (please specify) | I4: Total | K4: Grants & Contracts | L4: Gifts/ Endowment | M4: Dept-Funded (YD) | N4: Dean-Funded (APS) | O4: VA | P4: Other (please specify) | Q4: Total | S4: Grants & Contracts | T4: Gifts/ Endowment | U4: Dept-Funded (YD) | V4: Dean-Funded (APS) | W4: VA | X4: Other (please specify) | Y4: Total | AA4: Grand Total
B5: Revenue:
B6: Grant Directs | C6: 0 | D6: 0 | E6: 0 | F6: 0 | G6: 0 | H6: 0 | I6: =SUM(C6:H6) -> 0 | K6: 0 | L6: 0 | M6: 0 | N6: 0 | O6: 0 | P6: 0 | Q6: =SUM(K6:P6) -> 0 | S6: 0 | T6: 0 | U6: 0 | V6: 0 | W6: 0 | X6: 0 | Y6: =SUM(S6:X6) -> 0 | AA6: =I6+Q6+Y6 -> 0
B7: Grant Indirects | C7: 0 | D7: 0 | E7: 0 | F7: 0 | G7: 0 | H7: 0 | I7: =SUM(C7:H7) -> 0 | K7: 0 | L7: 0 | M7: 0 | N7: 0 | O7: 0 | P7: 0 | Q7: =SUM(K7:P7) -> 0 | S7: 0 | T7: 0 | U7: 0 | V7: 0 | W7: 0 | X7: 0 | Y7: =SUM(S7:X7) -> 0 | AA7: =I7+Q7+Y7 -> 0
A8: ='YSM-YM Clinical Plan'!$B$39 -> 0.2308 | B8: Clinical Drug Trials | C8: 0 | D8: 0 | E8: 0 | F8: 0 | G8: 0 | H8: 0 | I8: 0 | K8: 0 | L8: 0 | M8: 0 | N8: 0 | O8: 0 | P8: 0 | Q8: 0 | S8: 0 | T8: 0 | U8: 0 | V8: 0 | W8: 0 | X8: 0 | Y8: 0 | AA8: =I8+Q8+Y8 -> 0
A9: 0.12 | B9: Spendable Gifts | C9: 0 | D9: 0 | E9: 0 | F9: 0 | G9: 0 | H9: 0 | I9: 0 | K9: 0 | L9: 0 | M9: 0 | N9: 0 | O9: 0 | P9: 0 | Q9: 0 | S9: 0 | T9: 0 | U9: 0 | V9: 0 | W9: 0 | X9: 0 | Y9: 0 | AA9: 0
B10: Endowment Income | C10: 0 | D10: 0 | E10: 0 | F10: 0 | G10: 0 | H10: 0 | I10: 0 | K10: 0 | L10: 0 | M10: 0 | N10: 0 | O10: 0 | P10: 0 | Q10: 0 | S10: 0 | T10: 0 | U10: 0 | V10: 0 | W10: 0 | X10: 0 | Y10: 0 | AA10: 0
B11: VA Funding | C11: 0 | D11: 0 | E11: 0 | F11: 0 | G11: 0 | H11: 0 | I11: 0 | K11: 0 | L11: 0 | M11: 0 | N11: 0 | O11: 0 | P11: 0 | Q11: 0 | S11: 0 | T11: 0 | U11: 0 | V11: 0 | W11: 0 | X11: 0 | Y11: 0 | AA11: 0
A12: ='YSM-YM Clinical Plan'!$B$36 -> 0.117 | B12: YNHHS and Other Clinical Contracts | C12: 0 | D12: 0 | E12: 0 | F12: 0 | G12: 0 | H12: 0 | I12: 0 | K12: 0 | L12: 0 | M12: 0 | N12: 0 | O12: 0 | P12: 0 | Q12: 0 | S12: 0 | T12: 0 | U12: 0 | V12: 0 | W12: 0 | X12: 0 | Y12: 0 | AA12: 0
B13: Academic Program Support (APS) | C13: 0 | D13: 0 | E13: 0 | F13: 0 | G13: 0 | H13: 0 | I13: 0 | K13: 0 | L13: 0 | M13: 0 | N13: 0 | O13: 0 | P13: 0 | Q13: 0 | S13: 0 | T13: 0 | U13: 0 | V13: 0 | W13: 0 | X13: 0 | Y13: 0 | AA13: 0
B14: Other Revenue (please specify) | C14: 0 | D14: 0 | E14: 0 | F14: 0 | G14: 0 | H14: 0 | I14: 0 | K14: 0 | L14: 0 | M14: 0 | N14: 0 | O14: 0 | P14: 0 | Q14: 0 | S14: 0 | T14: 0 | U14: 0 | V14: 0 | W14: 0 | X14: 0 | Y14: 0 | AA14: 0
B15: Revenue Grand Total | C15: =SUM(C6:C14) -> 0 | D15: =SUM(D6:D14) -> 0 | E15: 0 | F15: 0 | G15: 0 | H15: 0 | I15: =SUM(C15:H15) -> 0 | K15: =SUM(K6:K14) -> 0 | L15: =SUM(L6:L14) -> 0 | M15: 0 | N15: 0 | O15: 0 | P15: 0 | Q15: 0 | S15: =SUM(S6:S14) -> 0 | T15: =SUM(T6:T14) -> 0 | U15: 0 | V15: 0 | W15: 0 | X15: 0 | Y15: 0 | AA15: 0
B17: Expenses:
B18: Faculty Salary: direct charge | C18: 0 | D18: 0 | E18: 0 | F18: 0 | G18: 0 | H18: 0 | I18: =SUM(C18:H18) -> 0 | K18: 0 | L18: 0 | M18: 0 | N18: 0 | O18: 0 | P18: 0 | Q18: =SUM(K18:P18) -> 0 | S18: 0 | T18: 0 | U18: 0 | V18: 0 | W18: 0 | X18: 0 | Y18: =SUM(S18:X18) -> 0 | AA18: =I18+Q18+Y18 -> 0
A19: DHHS/NIH Cap | B19: Faculty Salary: cost share | C19: n/a | D19: 0 | E19: 0 | F19: 0 | G19: 0 | H19: 0 | I19: 0 | K19: n/a | L19: 0 | M19: 0 | N19: 0 | O19: 0 | P19: 0 | Q19: 0 | S19: n/a | T19: 0 | U19: 0 | V19: 0 | W19: 0 | X19: 0 | Y19: 0 | AA19: 0
B20: Faculty Fringe rate | C20: =Assumptions!$D$8 -> 0.307 | D20: =Assumptions!$D$6 -> 0.315 | E20: =Assumptions!$D$6 -> 0.315 | F20: =Assumptions!$D$6 -> 0.315 | G20: =Assumptions!$D$8 -> 0.307 | H20: =Assumptions!$D$6 -> 0.315 | K20: =Assumptions!$D$8 -> 0.307 | L20: =Assumptions!$D$6 -> 0.315 | M20: =Assumptions!$D$6 -> 0.315 | N20: =Assumptions!$D$6 -> 0.315 | O20: =Assumptions!$D$8 -> 0.307 | P20: =Assumptions!$D$6 -> 0.315 | S20: =Assumptions!$D$8 -> 0.307 | T20: =Assumptions!$D$6 -> 0.315 | U20: =Assumptions!$D$6 -> 0.315 | V20: =Assumptions!$D$6 -> 0.315 | W20: =Assumptions!$D$8 -> 0.307 | X20: =Assumptions!$D$6 -> 0.315
B21: Faculty Fringe $ | C21: =C18*C20 -> 0 | D21: =(D18+D19)*D20 -> 0 | E21: 0 | F21: 0 | G21: 0 | H21: 0 | I21: 0 | K21: =K18*K20 -> 0 | L21: =(L18+L19)*L20 -> 0 | M21: 0 | N21: 0 | O21: 0 | P21: 0 | Q21: 0 | S21: =S18*S20 -> 0 | T21: =(T18+T19)*T20 -> 0 | U21: 0 | V21: 0 | W21: 0 | X21: 0 | Y21: 0 | AA21: =I21+Q21+Y21 -> 0
B22: Total Faculty Cost | C22: =C18+C21 -> 0 | D22: =D18+D19+D21 -> 0 | E22: 0 | F22: 0 | G22: 0 | H22: 0 | I22: 0 | K22: =K18+K21 -> 0 | L22: =L18+L19+L21 -> 0 | M22: 0 | N22: 0 | O22: 0 | P22: 0 | Q22: 0 | S22: =S18+S21 -> 0 | T22: =T18+T19+T21 -> 0 | U22: 0 | V22: 0 | W22: 0 | X22: 0 | Y22: 0 | AA22: 0
B24: Postdoc/Staff Salary | C24: 0 | D24: 0 | E24: 0 | F24: 0 | G24: 0 | H24: 0 | I24: =SUM(C24:H24) -> 0 | K24: 0 | L24: 0 | M24: 0 | N24: 0 | O24: 0 | P24: 0 | Q24: =SUM(K24:P24) -> 0 | S24: 0 | T24: 0 | U24: 0 | V24: 0 | W24: 0 | X24: 0 | Y24: =SUM(S24:X24) -> 0 | AA24: =I24+Q24+Y24 -> 0
B25: Postdoc/Staff Salary - Fringe | C25: 0 | D25: 0 | E25: 0 | F25: 0 | G25: 0 | H25: 0 | I25: 0 | K25: 0 | L25: 0 | M25: 0 | N25: 0 | O25: 0 | P25: 0 | Q25: =SUM(K25:P25) -> 0 | S25: 0 | T25: 0 | U25: 0 | V25: 0 | W25: 0 | X25: 0 | Y25: 0 | AA25: 0
B26: Non-Salary Expenses | C26: 0 | D26: 0 | E26: 0 | F26: 0 | G26: 0 | H26: 0 | I26: 0 | K26: 0 | L26: 0 | M26: 0 | N26: 0 | O26: 0 | P26: 0 | Q26: 0 | S26: 0 | T26: 0 | U26: 0 | V26: 0 | W26: 0 | X26: 0 | Y26: 0 | AA26: 0
B27: Equipment | C27: 0 | D27: 0 | E27: 0 | F27: 0 | G27: 0 | H27: 0 | I27: 0 | K27: 0 | L27: 0 | M27: 0 | N27: 0 | O27: 0 | P27: 0 | Q27: 0 | S27: 0 | T27: 0 | U27: 0 | V27: 0 | W27: 0 | X27: 0 | Y27: 0 | AA27: 0
A28: =A8 -> 0.2308 | B28: Clinical Trial Assessment | C28: =$A8*C8 -> 0 | D28: =$A8*D8 -> 0 | E28: 0 | F28: 0 | G28: 0 | H28: 0 | I28: 0 | K28: =$A8*K8 -> 0 | L28: =$A8*L8 -> 0 | M28: 0 | N28: 0 | O28: 0 | P28: 0 | Q28: 0 | S28: =$A8*S8 -> 0 | T28: =$A8*T8 -> 0 | U28: 0 | V28: 0 | W28: 0 | X28: 0 | Y28: 0 | AA28: 0
A29: =A9 -> 0.12 | B29: Gift Assessment | C29: =$A9*C9 -> 0 | D29: 0 | E29: 0 | F29: 0 | G29: 0 | H29: 0 | I29: 0 | K29: =$A9*K9 -> 0 | L29: 0 | M29: 0 | N29: 0 | O29: 0 | P29: 0 | Q29: 0 | S29: =$A9*S9 -> 0 | T29: 0 | U29: 0 | V29: 0 | W29: 0 | X29: 0 | Y29: 0 | AA29: 0
A30: =A12 -> 0.117 | B30: YNHHS Assessment | C30: =$A12*C12 -> 0 | D30: =$A12*D12 -> 0 | E30: 0 | F30: 0 | G30: 0 | H30: 0 | I30: 0 | K30: =$A12*K12 -> 0 | L30: =$A12*L12 -> 0 | M30: 0 | N30: 0 | O30: 0 | P30: 0 | Q30: 0 | S30: =$A12*S12 -> 0 | T30: =$A12*T12 -> 0 | U30: 0 | V30: 0 | W30: 0 | X30: 0 | Y30: 0 | AA30: 0
A31: =Assumptions!$D$9-A32 -> 0.086 | B31: Supplemental Fringe | C31: n/a | D31: =$A31*(D$18+D$19) -> 0 | E31: =$A31*(E$18+E$19) -> 0 | F31: 0 | G31: n/a | H31: 0 | I31: 0 | K31: n/a | L31: =$A31*(L$18+L$19) -> 0 | M31: =$A31*(M$18+M$19) -> 0 | N31: 0 | O31: n/a | P31: 0 | Q31: 0 | S31: n/a | T31: =$A31*(T$18+T$19) -> 0 | U31: =$A31*(U$18+U$19) -> 0 | V31: 0 | W31: n/a | X31: 0 | Y31: 0 | AA31: 0
A32: 0.03 | B32: YSM Sabbatical | C32: n/a | D32: =$A32*(D$18+D$19) -> 0 | E32: 0 | F32: 0 | G32: n/a | H32: 0 | I32: 0 | K32: n/a | L32: =$A32*(L$18+L$19) -> 0 | M32: 0 | N32: 0 | O32: n/a | P32: 0 | Q32: 0 | S32: n/a | T32: =$A32*(T$18+T$19) -> 0 | U32: 0 | V32: 0 | W32: n/a | X32: 0 | Y32: 0 | AA32: 0
B33: Applicable Assessments from above | C33: =SUM(C28:C32) -> 0 | D33: =SUM(D28:D32) -> 0 | E33: 0 | F33: 0 | G33: 0 | H33: 0 | I33: 0 | K33: =SUM(K28:K32) -> 0 | L33: 0 | M33: 0 | N33: 0 | O33: 0 | P33: 0 | Q33: 0 | S33: =SUM(S28:S32) -> 0 | T33: 0 | U33: 0 | V33: 0 | W33: 0 | X33: 0 | Y33: 0 | AA33: 0
B34: Grant Indirects | C34: =C7 -> 0 | D34: =D7 -> 0 | E34: 0 | F34: 0 | G34: 0 | H34: 0 | I34: 0 | K34: =K7 -> 0 | L34: =L7 -> 0 | M34: 0 | N34: 0 | O34: 0 | P34: 0 | Q34: 0 | S34: =S7 -> 0 | T34: =T7 -> 0 | U34: 0 | V34: 0 | W34: 0 | X34: 0 | Y34: 0 | AA34: 0
B36: Expense Grand Total | C36: =SUM(C22:C32)+C34 -> 0 | D36: =SUM(D22:D32)+D34 -> 0 | E36: 0 | F36: 0 | G36: 0 | H36: 0 | I36: 0 | K36: =SUM(K22:K32)+K34 -> 0 | L36: =SUM(L22:L32)+L34 -> 0 | M36: 0 | N36: 0 | O36: 0 | P36: 0 | Q36: 0 | S36: =SUM(S22:S32)+S34 -> 0 | T36: =SUM(T22:T32)+T34 -> 0 | U36: 0 | V36: 0 | W36: 0 | X36: 0 | Y36: 0 | AA36: =I36+Q36+Y36 -> 0
B38: Total Net Income | C38: =C15-C36 -> 0 | D38: =D15-D36 -> 0 | E38: 0 | F38: 0 | G38: 0 | H38: 0 | I38: =SUM(C38:H38) -> 0 | K38: =K15-K36 -> 0 | L38: =L15-L36 -> 0 | M38: 0 | N38: 0 | O38: 0 | P38: 0 | Q38: =SUM(K38:P38) -> 0 | S38: =S15-S36 -> 0 | T38: =T15-T36 -> 0 | U38: 0 | V38: 0 | W38: 0 | X38: 0 | Y38: =SUM(S38:X38) -> 0 | AA38: =I38+Q38+Y38 -> 0
C40: Supplemental info:
C41: Please describe grant funding, including % effort on each award if available (eg, 50% effort on R01)
C42: Please describe how cost sharing and other unfunded expenses will be covered (eg, "funded from clinical surplus", "funded from reserves")

Sheet OTC Calculation FY22 - OPTIONAL
A1: NIH / HHS SALARY and IRS PENSION CAP - Costing Allocation Calculations
A2: Current NIH Salary Cap | J2: =Assumptions!$D$21 -> 212100 | M2: Worker Costing Allocations (Effective Effort)
A3: Current IRS Pension Cap | J3: =Assumptions!$D$18 -> 330000
B4: A | C4: B | D4: C | E4: D (A*B) | F4: E (B*NIH CAP) | G4: F ( (A-Pension Cap)*B) | H4: G ( (A-Pension Cap)*B) | I4: H | J4: I | K4: J | M4: K | N4: L | O4: M | P4: N | Q4: O | S4: Y
A5: Enter Faculty Name | B5: Actual Salary | C5: Intended Effort %* | D5: Is this a NIH/HHS Grant? | E5: Actual Salary at required effort | F5: COA Direct Charge Salary | G5: NIH/HHS Over the Cap Salary | H5: PENSION - Over the Cap Salary | I5: COA Direct Charge Fringe | J5: Combined Over the Cap Fringe | K5: Total Cost Sharing | M5: COA Direct Charge | N5: NIH Cap Cost Share | O5: Pension Cap Cost Share (Ledger:71013) | P5: Total | Q5: Variance | S5: N
A6: Enter Awards or Grants here | B6: 0 | C6: 0 | E6: =B6*C6 -> 0 | F6: =IF(D6="Y",$J$2*C6,E6-H6) -> 0 | G6: =IF(D6="y",E6-F6-H6,0) -> 0 | H6: =IF(B6>=$J$3,((B6-$J$3)*(C6)),0) -> 0 | I6: =F6*$F$17 -> 0 | J6: =(H6*$H$17)+(G6*$G$17) -> 0 | K6: =G6+H6+J6 -> 0 | M6: =IFERROR(F6/B6,0) -> 0 | N6: =IFERROR(G6/B6,0) -> 0 | O6: =IFERROR(H6/B6,0) -> 0 | P6: =SUM(M6:O6) -> 0 | Q6: =C6-P6 -> 0
B7: =B6 -> 0 | C7: 0 | E7: 0 | F7: 0 | G7: 0 | H7: 0 | I7: 0 | J7: 0 | K7: =G7+H7+J7 -> 0 | M7: 0 | N7: 0 | O7: 0 | P7: 0 | Q7: 0
B8: =B7 -> 0 | C8: 0 | E8: 0 | F8: 0 | G8: 0 | H8: 0 | I8: 0 | J8: 0 | K8: 0 | M8: 0 | N8: 0 | O8: 0 | P8: 0 | Q8: 0
B9: 0 | C9: 0 | E9: 0 | F9: 0 | G9: 0 | H9: 0 | I9: 0 | J9: 0 | K9: 0 | M9: 0 | N9: 0 | O9: 0 | P9: 0 | Q9: 0
B10: 0 | C10: 0 | E10: 0 | F10: 0 | G10: 0 | H10: 0 | I10: 0 | J10: 0 | K10: 0 | M10: 0 | N10: 0 | O10: 0 | P10: 0 | Q10: 0
B11: 0 | C11: 0 | E11: 0 | F11: 0 | G11: 0 | H11: 0 | I11: 0 | J11: 0 | K11: 0 | M11: 0 | N11: 0 | O11: 0 | P11: 0 | Q11: 0
B12: 0 | C12: 0 | E12: 0 | F12: 0 | G12: 0 | H12: 0 | I12: 0 | J12: 0 | K12: 0 | M12: 0 | N12: 0 | O12: 0 | P12: 0 | Q12: 0
B13: 0 | C13: 0 | E13: 0 | F13: 0 | G13: 0 | H13: 0 | I13: 0 | J13: 0 | K13: 0 | M13: 0 | N13: 0 | O13: 0 | P13: 0 | Q13: 0
B14: 0 | C14: 0 | E14: 0 | F14: 0 | G14: 0 | H14: 0 | I14: 0 | J14: 0 | K14: 0 | M14: 0 | N14: 0 | O14: 0 | P14: 0 | Q14: 0
B15: 0 | C15: 0 | E15: 0 | F15: 0 | G15: 0 | H15: 0 | I15: 0 | J15: 0 | K15: 0 | M15: 0 | N15: 0 | O15: 0 | P15: 0 | Q15: 0
C16: =SUM(C6:C15) -> 0 | E16: =SUM(E6:E15) -> 0 | F16: 0 | G16: 0 | H16: 0 | I16: 0 | J16: 0 | K16: 0 | M16: =SUM(M6:M15) -> 0 | N16: =SUM(N6:N15) -> 0 | O16: =SUM(O6:O15) -> 0 | P16: =SUM(P6:P15) -> 0 | Q16: =SUM(Q6:Q15) -> 0
E17: FY22 Fringe Rates: | F17: ='Research Plan'!C20 -> 0.307 | G17: ='Research Plan'!D20 -> 0.315 | H17: 0.02
A20: Salary Allocated | B20: =SUM(F16:H16) -> 0
A21: Fringe Allocated | B21: =SUM(I16:J16) -> 0
A22: Total Expense | B22: =SUM(B20:B21) -> 0

Sheet OTC Calculation FY22 EXAMPLE
A1: NIH / HHS SALARY and IRS PENSION CAP - Costing Allocation Calculations
A2: Current NIH Salary Cap | J2: =Assumptions!$D$21 -> 212100 | M2: Worker Costing Allocations (Effective Effort)
A3: Current IRS Pension Cap | J3: =Assumptions!$D$18 -> 330000
B4: A | C4: B | D4: C | E4: D (A*B) | F4: E (B*NIH CAP) | G4: F ( (A-Pension Cap)*B) | H4: G ( (A-Pension Cap)*B) | I4: H | J4: I | K4: J | M4: K | N4: L | O4: M | P4: N | Q4: O | S4: Y
A5: Enter Faculty Name | B5: Actual Salary | C5: Intended Effort %* | D5: Is this a NIH/HHS Grant? | E5: Actual Salary at required effort | F5: COA Direct Charge Salary | G5: NIH/HHS Over the Cap Salary | H5: PENSION - Over the Cap Salary | I5: COA Direct Charge Fringe | J5: Combined Over the Cap Fringe | K5: Total Cost Sharing | M5: COA Direct Charge | N5: NIH Cap Cost Share | O5: Pension Cap Cost Share (Ledger:71013) | P5: Total | Q5: Variance | S5: N
A6: Enter Awards or Grants here | B6: 1000000 | C6: 0.1 | D6: Y | E6: =B6*C6 -> 100000 | F6: =IF(D6="Y",$J$2*C6,E6-H6) -> 21210 | G6: =IF(D6="y",E6-F6-H6,0) -> 11790 | H6: =IF(B6>=$J$3,((B6-$J$3)*(C6)),0) -> 67000 | I6: =F6*$F$17 -> 6511.47 | J6: =(H6*$H$17)+(G6*$G$17) -> 5053.85 | K6: =G6+H6+J6 -> 83843.85 | M6: =IFERROR(F6/B6,0) -> 0.02121 | N6: =IFERROR(G6/B6,0) -> 0.01179 | O6: =IFERROR(H6/B6,0) -> 0.067 | P6: =SUM(M6:O6) -> 0.1 | Q6: =C6-P6 -> 0
B7: =B6 -> 1000000 | C7: 0.1 | D7: N | E7: 100000 | F7: 33000 | G7: 0 | H7: 67000 | I7: 10131 | J7: 1340 | K7: =G7+H7+J7 -> 68340 | M7: 0.033 | N7: 0 | O7: 0.067 | P7: 0.1 | Q7: 0
B8: =B7 -> 1000000 | C8: 0.15 | D8: Y | E8: 150000 | F8: 31815 | G8: 17685 | H8: 100500 | I8: 9767.205 | J8: 7580.775 | K8: 125765.775 | M8: 0.031815 | N8: 0.017685 | O8: 0.1005 | P8: 0.15 | Q8: 0
B9: 1000000 | C9: 0.16 | D9: N | E9: 160000 | F9: 52800 | G9: 0 | H9: 107200 | I9: 16209.6 | J9: 2144 | K9: 109344 | M9: 0.0528 | N9: 0 | O9: 0.1072 | P9: 0.16 | Q9: 0
B10: 1000000 | C10: 0.09 | D10: N | E10: 90000 | F10: 29700 | G10: 0 | H10: 60300 | I10: 9117.9 | J10: 1206 | K10: 61506 | M10: 0.0297 | N10: 0 | O10: 0.0603 | P10: 0.09 | Q10: 0
B11: 1000000 | C11: 0.25 | D11: Y | E11: 250000 | F11: 53025 | G11: 29475 | H11: 167500 | I11: 16278.675 | J11: 12634.625 | K11: 209609.625 | M11: 0.053025 | N11: 0.029475 | O11: 0.1675 | P11: 0.25 | Q11: 0
B12: 1000000 | C12: 0.05 | D12: N | E12: 50000 | F12: 16500 | G12: 0 | H12: 33500 | I12: 5065.5 | J12: 670 | K12: 34170 | M12: 0.0165 | N12: 0 | O12: 0.0335 | P12: 0.05 | Q12: 0
B13: 1000000 | C13: 0.07 | D13: N | E13: 70000 | F13: 23100 | G13: 0 | H13: 46900 | I13: 7091.7 | J13: 938 | K13: 47838 | M13: 0.0231 | N13: 0 | O13: 0.0469 | P13: 0.07 | Q13: 0
B14: 1000000 | C14: 0.01 | D14: Y | E14: 10000 | F14: 2121 | G14: 1179 | H14: 6700 | I14: 651.147 | J14: 505.385 | K14: 8384.385 | M14: 0.002121 | N14: 0.001179 | O14: 0.0067 | P14: 0.01 | Q14: 0
B15: 1000000 | C15: 0.02 | D15: N | E15: 20000 | F15: 6600 | G15: 0 | H15: 13400 | I15: 2026.2 | J15: 268 | K15: 13668 | M15: 0.0066 | N15: 0 | O15: 0.0134 | P15: 0.02 | Q15: 0
C16: =SUM(C6:C15) -> 1 | E16: =SUM(E6:E15) -> 1000000 | F16: 269871 | G16: 60129 | H16: 670000 | I16: 82850.397 | J16: 32340.635 | K16: 762469.635 | M16: =SUM(M6:M15) -> 0.269871 | N16: =SUM(N6:N15) -> 0.060129 | O16: =SUM(O6:O15) -> 0.67 | P16: =SUM(P6:P15) -> 1 | Q16: =SUM(Q6:Q15) -> 0
E17: FY22 Fringe Rates: | F17: ='Research Plan'!C20 -> 0.307 | G17: ='Research Plan'!D20 -> 0.315 | H17: 0.02
A20: Salary Allocated | B20: =SUM(F16:H16) -> 1000000
A21: Fringe Allocated | B21: =SUM(I16:J16) -> 115191.032
A22: Total Expense | B22: =SUM(B20:B21) -> 1115191.032

Sheet Assumptions
B2: Assumptions Impacting YSM-YM Business Plan
B3: * Changing the inputs will impact the plan sheet and salary build tab.
B5: Fringe
C6: M&P - Non-Clinical Faculty | D6: 0.315 | E6: FY 2024 Rate
C7: Clinical Faculty | D7: 0.315 | E7: FY 2024 Rate
C8: M&P/Faculty - Grants | D8: 0.307 | E8: FY 2024 Rate
C9: Tack-On & Sabaatical Assessment | D9: =0.086+0.03 -> 0.116 | E9: FY 2024 Rate
C10: Child Rearing Assessment | D10: 0.012 | E10: FY 2024 Rate
C11: C&T | D11: 0.685 | E11: FY 2024 Rate
C12: C&T - Grants | D12: 0.661 | E12: FY 2024 Rate
C13: Over the Pension Cap | D13: 0.02 | E13: FY 2024 Rate
C14: Over the Pension Cap - Clinical Faculty | D14: 0.02 | E14: FY 2024 Rate
C15: Incentive | D15: 0.02 | E15: FY 2024 Rate
B16: Other
C17: Lag | D17: 1.5 | E17: Represents 45 day collection lag
C18: Over the Pension Cap Amount1 | D18: 330000 | E18: CY 2023 Cap
B20: Research
C21: NIH Salary Cap | D21: 212100 | E21: Cap as per NIH
C23: Indirect Rates
C24: https://your.yale.edu/research-support/office-sponsored-projects/institutional-information
B26: 1) Over the cap amount

Sheet Contractual Calculator
G2: Department
G3: Gross-Up?
C4: YNHHS and Non-Affiliated Hospital Contract Calculator | G4: No
D6: Rate | E6: Year 1 | F6: Year 2 | G6: Year 3
C7: Base Contract Amount | E7: 0 | F7: 0 | G7: 0
C8: Department Assessment | D8: 0 | E8: =IF(G4="Yes",$E$7/(1-$D$8)-$E$7,$D$8*$E$7) -> 0 | F8: =IF($G$4="Yes",$F$7/(1-$D$8)-$F$7,$D$8*$F$7) -> 0 | G8: =IF($G$4="Yes",$G$7/(1-$D$8)-$G$7,$D$8*$G$7) -> 0
C9: Direct Contract Amount | E9: =E8+E7 -> 0 | F9: =F8+F7 -> 0 | G9: =G8+G7 -> 0
C10: YSM/YM Assessment | D10: 0.117 | E10: =E9/(1-D10)-$E$9 -> 0 | F10: =F9/(1-D10)-$F$9 -> 0 | G10: =G9/(1-D10)-$G$9 -> 0 | H10: Please update to 15% if for non-affiliated
C11: Total Amount of Contract | E11: =E10+E9 -> 0 | F11: =F10+F9 -> 0 | G11: =G10+G9 -> 0
C12: Gross Assessments | E12: =E8+E10 -> 0 | F12: =F8+F10 -> 0 | G12: 0
C13: Assessment Effective Rate - % | E13: =IFERROR(E12/E11,0) -> 0 | F13: =IFERROR(F12/F11,0) -> 0 | G13: =IFERROR(G12/G11,0) -> 0

Sheet I&A Calculator
B4: I&A Calculator to Support Template
B6: Building Purchase | G6: ***Abatement and remediation costs cannot be capitalized. The costs will be expensed in year one (or when abated)***
C8: Principle | D8: 0 | G8: Type of Project | I8: Term
C9: Int Rate | D9: 0.0425 | G9: Building Purchase | I9: 40
C10: Term-Yrs | D10: 40 | G10: Building Renovation | I10: 15-20
G11: Furniture | I11: 10
C12: Annual I&A | D12: =PMT(D9/12,D10*12,D8)*-12 -> 0
B15: Building Renovation
C17: Principle | D17: 0
C18: Int Rate | D18: 0.0425
C19: Term-Yrs | D19: 20
C21: Annual I&A | D21: =PMT(D18/12,D19*12,D17)*-12 -> 0
B24: Furniture
C26: Principle | D26: 0
C27: Int Rate | D27: 0.0425
C28: Term-Yrs | D28: 10
C30: Annual I&A | D30: =PMT(D27/12,D28*12,D26)*-12 -> 0

Sheet Definitions
B2: PDDO Template Definitions:
B4: Category | C4: Definition
B6: Type
B7: YNHH PDDO | C7: A backstop from YNHH with a unique set of assessments; will populate the assessments on PDDO section at the bottom of the document.
B8: YNHHS PDDO | C8: A backstop from a YNHHS entity with a unique set of assessments; will populate the assessments on PDDO section at the bottom of the document.
B9: Non-Affliated PDDO | C9: A backstop from non-YNHH/YNHHS entity with a unique set of assessments; will populate the assessments on PDDO section at the bottom of the document.
B10: Contractual | C10: A plan to satisfy planning for a contractual agreement. Does not impact the spreadsheet and assessments will only be calculated within the plan.
B12: Position
B13: Replacement | C13: A replacement for an existing faculty position.
B14: Acquisition | C14: Acquisition of a new practice or physician.
B15: New Hire - Organic | C15: A new hire due to organic growth (clinic volume growth in existing service/clinic, etc.)
B16: New Program (Not Acquired) | C16: A new program being built from the ground up.
B17: N/A | C17: Catch-all.
B18: One-Time Incentive | C18: One-time payment(s) funded by Yale University
B19: Ongoing Incentive | C19: Ongoing payment(s) funded by Yale University
B20: Moving/Relocation Bonus | C20: Payment(s) funded by Yale University related to relocation
B21: YNHH Metric-Based | C21: YNHH funded performance funds paid on-going and based on achievement of metrics and goals (i.e. no YNHH YSM overhead)
B22: YNHH Not Metric-Based | C22: YNHH funded performance fund not tied to metrics (i.e. must pay 18% YSM overhead)
B24: Ramp-Up Methodology | C24: Can select for each of the three years. The standard assumption should be 65/80/100. Will show as blank and the user is to select appropriate ramp-up criteria.
B25: Volume | C25: For clinical business plans, please select the volume metric you are using. The standard is wRVU.
B26: Revenue-Generating cFTE | C26: Time spent seeing patients and/or on direct patient care activity. Should align with departments definition of cFTE.
B27: # of Faculty | C27: Physical bodies associated with the plan. For example, if there is support for 1.6 cFTE which is comprised of two individuals, the number of faculty is two.
B29: Revenue/Volume Metrics:
B30: Volume per Revenue-generating cFTE | C30: A metric to show expected productivity per cFTE. Should be aligned with ramp-up.
B31: Collections per Revenue-generating cFTE | C31: A metric to show expected collections per cFTE. Should be aligned with ramp-up.
B32: Collections per Volume Metric | C32: A metric to show expected collections on a per unit basis.
B34: Program Development/Direction Support
B35: YNHH Direct Salary and Fringe Benefit Support | C35: Typically, medical director support for salary and fringe. The original version will auto-calculate based on the salary build sheet.
B36: YNHH Contractual | C36: Contractual arrangements in which YNHH is the other entity (includes on-call).
B37: Other Contractual | C37: Contractual arrangements in which YNHH is not the other entity.
B38: Gifts | C38: Contributions made to a University entity; has assessment implications.
B39: Other Revenue (non-taxable) | C39: A catch-all for other revenue.

Sheet Version Notes
B2: Version Notes:
B4: 1.1 | C4: Fixed formula double counting incentive compensation
B6: 1.2 | C6: Fixed ongoing versus on-time incentive compensation
B8: 1.3 | C8: Broke out salary build sheet by year (removed inflationary components)
C10: Added non-salary build sheet
C12: Added additional lines for incentive compensation
C14: Added YNHH Contractual to bottom of template to calculate appropriate YNHH commitment
C16: Added I&A Calculator and term/interest rate information
C18: Programmed new incentive compensation categories
C19: ---> selecting a YNHH category populates both revenue and expense
B21: 2019.1 | C21: Updated fringe and assumptions based on the FY 2019 budget instructions
C23: Grant Indirects moved to bottom of the document as to not impact net income or YNHH payment (dollars go directly to YSM)
C25: Grant fringe rates programmed into the template on the salary build sheet (column D)
B27: 2019.1.2 | C27: Fixed formula error related to medical directorship salary and fringe
B29: 2019.2.0 | C29: Adjusted assessments for new methodology
C31: Adjusted fringe to reflect clinical and non-clinical for faculty only (42.1% and 2.2%)
C33: Fixed PDDO formula to reflect 11.3% overhead
B35: 2019.2.1 | C35: Fixed PDDO formula which was incorrectly calculating YNHH payment on deficits on RFPs and other non-PDDOs
B37: 2020.1.0 | C37: Updated fringe and assumptions based on the FY 2020 budget instructions
C39: Added password to unlock to top of summary RFP document
B41: 2020.1.1 | C41: Fixed formula error and a presentation error
B43: 2020.1.2 | C43: Added YNHHS - Contractual PDDO category with associated formulas and labels.
C44: Added Conctractual Calculator
B46: 2020.12.13.20 | C46: Added research template
C47: Updated fringe rates for new family rearing rate
C48: Added affiliated hospital template
C49: Added summary RFP template
C50: Updated inaccuracy (in rare occassions) on YNHHS overhead
B52: 2021.3.31.20 | C52: Formatting enhancements to aid printing
C53: Updated fringe and caps to FY 2021 rates/amounts
C54: Added non-salary functionality for Research RFP
C55: Updated I&A sheet for new University interest rate
B57: 2021.8.20.20 | C57: Removed error prompts caused by hidden sheets
C58: Updated fringe rates for new guidnance on Child Rearing
B60: 2022.1.06.21 | C60: Moved Tach-On, Sabbatical, and Child Rearing to assessments rather than fringe
C61: Added FY22 parameters
C62: Adjusted for new YNHH(S) overhead rate from 11.3%/15% to 11.7%
C63: Other cosmetic adjustments and formula improvements
B65: 2022.1.27.21 | C65: Fixed formula error for YNHH direct funding
C66: Fixed formula error for YNHHS contractual agreements
B68: 2022.5.3.21 | C68: Removed Dean's Dowry as a revenue source
C69: Renamed Dowry "Academic Program Support"
C70: Correct proration for tack-on, sabbatical, and child-rearing leave
C71: Hid summary tab which is not widely used
C72: Corrected Research RFP non-salary issue (unfunded)
B74: 2022.9.15.21 | C74: Relabeled Business Office Assessment as Department Assessment
C75: Fixed YNHH funded salaries formula
C76: Revised contractual calculator
B78: 2023.1.26.22 | C78: Include redesign of Research RFP Template
C79: Added YM CARE staffing
C80: Updated for FY23 parameters
C81: Various formatting changes
C82: Changed ramp-up to blank to incent thoughful metrics
B84: 2023.6.13.22 | C84: Renamed YNHH(S) options and consolidated
C85: Added a "Non-Affiliated" PDDO category
C86: Removed mostly unused categories without formula implications (RFP and Salary Support)
C87: Changed NIH cap as of 1/22
C88: Fixed Tack-on proration formula
C89: Added grand total to Research RFP and locked select cells with formulas
B91: 2023.10.31.22 | C91: Unlocked commentary on "Research Tab"
C92: Changed font to Times New Roman
C93: Removed default assessment rate
C94: Added YNHH/YM cover sheet
C95: Minor formula and labeling enhancements throughout workbook
B97: 2024.02.21.23 | C97: Updated for FY24 budget parameters
C98: Removed unused research assumptions (custom caps)
C99: Added hyperlink to official YSM research assumptions on the assumptions tab

Sheet Research Depository (hidden)
C3: On-Campus | E3: NIH Salary Cap | G3: Yes
C4: On-Campus Department of Defense | E4: Custom Cap | G4: No
C5: Off Campus | E5: No Cap | G5: Subaward Cap
C6: CMHC | G6: Custom Cap
C7: VA
C8: Other Federally Sponsored Activities - On Campus
C9: Other Federally Sponsored Activities - Off Campus
C10: Private < $10K
C11: Private $10K-$25K
C12: Industry Clinical Trials
C13: Fellowships
C14: Training Grants
C15: Unrestricted Clinical Trial
C16: Multiple Awards (Use Custom Indirect Rate)

Sheet Depository for MD (hidden)
B2: Rank | C2: CLINICAL SCIENCE - TOTAL ALL DEPARTMENTS/SPECIALTIES | J2: 25th | L2: Clinical
B3: Instructor | C3: Total Anesthesiology | J3: Median | L3: Non-Clinical
B4: Assistant Professor | C4: Anesthesiology: General | J4: 75th
B5: Associate Professor | C5: Anesthesiology: Pain Management | J5: Mean
B6: Professor | C6: Anesthesiology: Pediatric
B7: Section Chief | C7: Total Dermatology
B8: Chair | C8: Dermatology (excluding Mohs Surgery)
B9: Medical Director | C9: Dermatology: Mohs Surgery
C10: Total Family Medicine
C11: Family Medicine: General
C12: Family Medicine: Sports Medicine
C13: Family Medicine: Other
C14: Total Medicine
C15: Allergy/Immunology-Med.
C16: Cardiology: Total
C17: Cardiology: Invasive Interventional-Med.
C18: Cardiology: Invasive Non-interventional-Med.
C19: Cardiology: Non-invasive-Med.
C20: Critical/Intensive Care-Med.
C21: Endocrinology-Med.
C22: Gastroenterology-Med.
C23: General Internal Medicine
C24: Geriatrics-Med.
C25: Hematology/Oncology-Med.
C26: Hospital Medicine
C27: Infectious Disease-Med.
C28: Nephrology-Med.
C29: Pulmonary-Med.
C30: Rheumatology-Med.
C31: Other Medicine
C32: Total OB/GYN
C33: OB/GYN: General
C34: OB/GYN: Gynecologic Oncology
C35: OB/GYN: Maternal & Fetal
C36: OB/GYN: Reproductive Endocrinology
C37: OB/GYN: Other OB/GYN
C38: Total Pathology
C39: Pathology: Anatomic
C40: Pathology: Clinical
C41: Pathology: Other Pathology
C42: Total Pediatrics
C43: Adolescent Medicine
C44: Allergy/Immunology-Peds.
C45: Critical/Intensive Care-Peds.
C46: Emergency Medicine-Peds.
C47: Endocrinology-Peds.
C48: Gastroenterology-Peds.
C49: General Pediatrics
C50: Genetics-Peds.
C51: Hematology/Oncology-Peds.
C52: Hospital Medicine-Peds.
C53: Infectious Disease-Peds.
C54: Neonatology
C55: Nephrology-Peds.
C56: Neurology-Peds.
C57: Pediatric Cardiology
C58: Pulmonary-Peds.
C59: Rheumatology-Peds.
C60: Other Pediatrics
C61: Total Psychiatry
C62: Psychiatry: Child & Adolescent
C63: Psychiatry: General
C64: Psychiatry: Other
C65: Total Radiology
C66: Diagnostic Radiology: Total
C67: Diagnostic Radiology: Interventional
C68: Diagnostic Radiology: Non-interventional
C69: Nuclear Medicine
C70: Radiation Oncology
C71: Other Radiology
C72: Total Surgery
C73: General Surgery
C74: Neurosurgery
C75: Orthopaedic Surgery: Total
C76: Orthopaedic Surgery: General
C77: Orthopaedic Surgery: Sports Medicine
C78: Orthopaedic Surgery: Other
C79: Pediatric Surgery
C80: Plastic Surgery
C81: Surgical Oncology
C82: Thoracic & Cardiovascular Surgery
C83: Transplant Surgery
C84: Trauma/Critical Care Surgery
C85: Urology
C86: Vascular Surgery
C87: Other Surgery
C88: Community Health
C89: Emergency Medicine
C90: Neurology
C91: Ophthalmology
C92: Otolaryngology
C93: Physical Medicine & Rehabilitation
C94: Preventive Medicine

Sheet Depository1 (hidden)
V4: Yes
B5: 60%/85%/100% | C5: YNHH PDDO | E5: Replacement | H5: Anesthesiology | I5: Administration | M5: Start in Q1 | N5: 12 | P5: wRVUs | V5: No
B6: 50%/75%/100% | C6: YNHHS PDDO | E6: Acquisition | H6: Comprehensive Cancer Center | I6: Aids | J6: =CONCATENATE("Internal Medicine"," - ",I5) -> Internal Medicine - Administration | M6: Start in Q2 | N6: 9 | P6: UHC RVUs
B7: No Ramp Up | C7: Non-Affiliated PDDO | E7: New Hire - Organic | H7: Child Study Center | I7: Cardiology | J7: Internal Medicine - Aids | M7: Start in Q3 | N7: 6 | P7: Units | Y7: Yes
C8: Contractual | E8: New Program (not acquired) | H8: Dermatology | I8: Clinical Affairs | J8: Internal Medicine - Cardiology | M8: Start in Q4 | N8: 3 | P8: Time Units | Y8: No
E9: N/A | H9: Emergency Medicine | I9: Clinical Scholars | J9: Internal Medicine - Clinical Affairs | M9: Full Year | N9: 12 | P9: Visits
H10: Genetics | I10: Digestive Diseases | J10: Internal Medicine - Clinical Scholars | M10: Start in July | N10: 12 | P10: Cases
H11: Internal Medicine | I11: Education | J11: Internal Medicine - Digestive Diseases | M11: Start in Aug. | N11: 11 | P11: Other (Please Explain in Notes)
H12: Laboratory Medicine | I12: Endocrinology | J12: Internal Medicine - Education | M12: Start in Sept. | N12: 10 | X12: Clinical Staff
H13: Neurology | I13: General Medicine | J13: Internal Medicine - Endocrinology | M13: Start in Oct. | N13: 9 | X13: Administrative
H14: Neurosurgery | I14: Geriatrics | J14: Internal Medicine - General Medicine | M14: Start in Nov. | N14: 8 | X14: YM CARE
H15: Obstetrics & Gynecology | I15: Immunology | J15: Internal Medicine - Geriatrics | M15: Start in Dec. | N15: 7 | X15: Other
H16: Ophthalmology and Visual Science | I16: Infectious Diseases | J16: Internal Medicine - Immunology | M16: Start in Jan. | N16: 6
B17: 0.4 | D17: 0.4 | H17: Orthopaedics and Rehabilitation | I17: Global Health | J17: Internal Medicine - Infectious Diseases | M17: Start in Feb. | N17: 5
B18: 0.45 | C18: 0.4 | D18: 0.45 | H18: Pathology | I18: Nephrology | J18: Internal Medicine - Global Health | M18: Start in Mar. | N18: 4
B19: 0.5 | C19: 0.45 | D19: 0.5 | H19: Pediatrics | I19: Occupational Medicine | J19: Internal Medicine - Nephrology | M19: Start in Apr. | N19: 3
B20: 0.55 | C20: 0.5 | D20: 0.55 | H20: Psychiatry | I20: Pulmonary | J20: Internal Medicine - Occupational Medicine | M20: Start in May | N20: 2
B21: 0.6 | C21: 0.55 | D21: 0.6 | H21: Radiology and Biomedical Imaging | I21: Research Affairs | J21: Internal Medicine - Pulmonary | M21: Start in June | N21: 1
B22: 0.65 | C22: 0.6 | D22: 0.65 | H22: Surgery | I22: Rheumatology | J22: Internal Medicine - Research Affairs
B23: 0.7 | C23: 0.65 | D23: 0.7 | H23: Therapeutic Radiology | I23: Stem Cell Center | J23: Internal Medicine - Rheumatology
B24: 0.75 | C24: 0.7 | D24: 0.75 | H24: Urology | I24: PA Program | J24: Internal Medicine - Stem Cell Center
B25: 0.8 | C25: 0.75 | D25: 0.8 | H25: YM Multi-Specialty Clinics | I25: Administration | J25: Internal Medicine - PA Program | M25: Assisstant Professor
B26: 0.85 | C26: 0.8 | D26: 0.85 | I26: Community Physicians | J26: =CONCATENATE("OB-GYN"," - ",I25) -> OB-GYN - Administration | M26: Associate Professor | P26: Ongoing
B27: 0.9 | C27: 0.85 | D27: 0.9 | I27: Endocrinology | J27: OB-GYN - Community Physicians | M27: Clinician | P27: One-Time
B28: 0.95 | C28: 0.9 | D28: 0.95 | I28: Oncology | J28: OB-GYN - Endocrinology | M28: Instructor
B29: 1 | C29: 0.95 | D29: 1 | I29: Perinatology | J29: OB-GYN - Oncology | M29: Medical Director
B30: Blank | C30: 1 | D30: Blank | I30: Reproductive Sciences | J30: OB-GYN - Perinatology | M30: Professor
C31: Blank | I31: Teaching | J31: OB-GYN - Reproductive Sciences
B32: FY 2023 | E32: One-Time Incentive | I32: Urogynecology | J32: OB-GYN - Teaching
B33: FY 2024 | E33: Ongoing Incentive | I33: Family Planning | J33: OB-GYN - Urogynecology
B34: FY 2025 | E34: Moving/Relocation Bonus | I34: Administration | J34: OB-GYN - Family Planning
B35: FY 2026 | E35: YNHH Metric-Based | I35: Hematology / Oncology | J35: =CONCATENATE("Pediatrics"," - ",I34) -> Pediatrics - Administration
B36: FY 2027 | E36: YNHH Not Metric-Based | I36: Cardiology | J36: =CONCATENATE("Pediatrics"," - ",I35) -> Pediatrics - Hematology / Oncology
B37: FY 2028 | I37: Endocrinology | J37: Pediatrics - Cardiology
B38: FY 2029 | I38: Gastroenterology | J38: Pediatrics - Endocrinology
B39: FY 2030 | I39: Emergency Dept | J39: Pediatrics - Gastroenterology
B40: FY 2031 | I40: Infectious Disease | J40: Pediatrics - Emergency Dept
B41: FY 2032 | I41: Immunology | J41: Pediatrics - Infectious Disease
I42: Nephrology | J42: Pediatrics - Immunology
I43: Neurology | J43: Pediatrics - Nephrology
I44: General Pediatrics | J44: Pediatrics - Neurology
I45: Respiratory | J45: Pediatrics - General Pediatrics
I46: Neonatology | J46: Pediatrics - Respiratory
I47: Adolescent Medicine | J47: Pediatrics - Neonatology
I48: Critical Care | J48: Pediatrics - Adolescent Medicine
I49: Hospitalist | J49: Pediatrics - Critical Care
I50: Pedi Epilepsy | J50: Pediatrics - Hospitalist | M50: Yes
I51: International Adoption | J51: Pediatrics - Pedi Epilepsy | M51: No
I52: DBP Developmental Behavior Ped | J52: Pediatrics - International Adoption
I53: Stem Cell CTR | J53: Pediatrics - DBP Developmental Behavior Ped
I54: Administration | J54: Pediatrics - Stem Cell CTR
I55: Section of Cardiac Surgery | J55: Radiology and Biomedical Imaging - Interventional
I56: Medical Education | J56: Radiology and Biomedical Imaging - Body Imaging
I57: Oncology | J57: Radiology and Biomedical Imaging - Thoracic/Cardiac
I58: Otolaryngology | J58: Radiology and Biomedical Imaging - Emergency Medicine
I59: Pediatrics | J59: Radiology and Biomedical Imaging - Breast Imaging
I60: Plastic | J60: Radiology and Biomedical Imaging - Musculoskeletal
I61: Section of Thoracic Surgery | J61: Radiology and Biomedical Imaging - Neuro
I62: Gross Anatomy | J62: Radiology and Biomedical Imaging - Nuclear Medicine
I63: Neuropathology | J63: Radiology and Biomedical Imaging - Pediatrics
I64: Surgical Outcomes | J64: Radiology and Biomedical Imaging - Ultrasound
I65: Transplant | J65: =CONCATENATE("Surgery"," - ",I54) -> Surgery - Administration
I66: Trauma | J66: Surgery - Section of Cardiac Surgery
I67: Vascular | J67: Surgery - Medical Education
I68: Chairman | J68: Surgery - Oncology
I69: Billing | J69: Surgery - Otolaryngology
I70: Endocrine Surgery | J70: Surgery - Pediatrics
I71: Gastrointestinal | J71: Surgery - Plastic
I72: Stem Cell Ctr | J72: Surgery - Section of Thoracic Surgery
J73: Surgery - Gross Anatomy
J74: Surgery - Neuropathology
J75: Surgery - Surgical Outcomes
J76: Surgery - Transplant
J77: Surgery - Trauma
J78: Surgery - Vascular
J79: Surgery - Chairman
J80: Surgery - Billing
J81: Surgery - Endocrine Surgery
J82: Surgery - Gastrointestinal
J83: Surgery - Stem Cell Ctr
